Cogmind - Beta 14 @@@ ROGUE MODE // 2025.03.03 @ 12:21:32 Player: G4-R3D Result: Destroyed by Alpha 7 with Multirail Performance ------------- Evolutions (9) 4500 Regions Visited (32) 6400 Robots Destroyed (217) 1085 Value Destroyed (12623) 12623 Prototype IDs (62) 1240 Alien Tech Used (0) 0 Bonus (19111) 19111 TOTAL SCORE: 44959 Bonus ------- High Alert Combat Kills 632 Follower Combat Kills 5419 Entered Garrisons 1800 Used RIF Installer 5500 Network Hubs Disabled 200 Aligned with FarCom 300 Built Enhanced Grunts 300 A7 Reached Mainframe 300 Met MAIN.C 5000 Hacked MAIN.C 300 Friendly Fire -640 Cogmind --------- Core Integrity 0/1600 Matter 241/300 Energy 100/100 System Corruption 30% Temperature Cool (0) Movement Core (100) Ox1 Location -1/Command Parts ------- > --- POWER (1) -------- (None) > --- PROPULSION (8) --- (None) > --- UTILITY (14) ----- Advanced Heat Sink Improved Targeting Computer Advanced Targeting Computer > --- WEAPON (2) ------- Lance > --- INVENTORY (5) ---- Micro Antimatter Reactor Advanced Heavy Siege Treads Advanced Energy Well (500) Advanced Remote Datajack Peak State ------------ > --- POWER ------------ Quantum Reactor > --- PROPULSION ------- Biometal Heavy Treads Biometal Heavy Treads Biometal Heavy Treads Q-thruster Improved Q-thruster > --- UTILITY ---------- Advanced Heat Sink Large Storage Unit Improved Targeting Computer Advanced Targeting Computer ECM Suite Layered Light Armor Plating Graphene Brace Advanced Hacking Suite Advanced System Shield Relay Coupler [NC] Relay Coupler [C] Relay Coupler [Cutter] Relay Coupler [Sentry] Advanced System Restoration Module > --- WEAPON ----------- Enhanced Nova Cannon Advanced Remote Datajack > --- INVENTORY -------- Micro Antimatter Reactor Biometal Heavy Treads Biometal Heavy Treads Advanced Heavy Siege Treads Advanced Energy Well Antimissile System Antimissile System Enhanced Nova Cannon Compact Mass Driver Advanced Remote Datajack Lance [Rating: 166] Favorites ----------- Power Light Nuclear Core Engine Light Angular Momentum Engine Power Core Light Nuclear Core Reactor Quantum Reactor Propulsion Carbon-fiber Leg Treads Medium Treads Leg Carbon-fiber Leg Wheel Armored Huge Wheel Hover Unit Improved Hover Unit Flight Unit Impulse Thruster Array Utility Hacking Suite Device Improved Heat Sink Storage Large Storage Unit Processor Improved Targeting Computer Hackware Hacking Suite Protection Layered Light Armor Plating Weapon Powered Hammer Energy Gun Heavy EM Shotgun Energy Cannon Enhanced Nova Cannon Ballistic Gun Advanced KE Penetrator Ballistic Cannon Antimatter Cannon Launcher Grenade Launcher Special Weapon Remote Datajack Impact Weapon Powered Hammer Slashing Weapon Katana Piercing Weapon Lance Special Melee Weapon Improved Datajack Build | -11 -10 -10 -9 -9 -9 -8 -8 -8 -8 -7 -6 -6 -6 -6 -5 -5 -5 -5 -5 -5 -4 -4 -3 -3 -3 -3 -2 -2 -2 -2 -1 -1 ------- Run | Yrd Mat Min Mat Min Exi Min Mat Sto Gar Fac Fac Gar Fac Gar Fac Ext Cet Arc Hub Gar Fac Gar Res Gar Res Gar Res Gar Res Gar Acc Com Slots Evolved 18 | . . . 2 . . . 2 . . 2 2 . . . 2 . . . . . 2 . 2 . . . 2 . . . 2 . Power . | . . . . . . . . . . . . . . . . . . . . . . . . . . . . . . . . . Propulsion 6 | . . . 1 . . . 1 . . 2 . . . . . . . . . . . . . . . . 2 . . . . . Utility 12 | . . . 1 . . . 1 . . . 2 . . . 2 . . . . . 2 . 2 . . . . . . . 2 . Weapon . | . . . . . . . . . . . . . . . . . . . . . . . . . . . . . . . . . Parts Attached 475 | 5 4 3 15 2 2 13 7 34 25 43 25 4 21 8 20 17 4 9 10 11 15 9 27 10 4 27 8 12 7 11 27 36 Power 33 | 1 . 1 1 . . 1 . 3 1 4 1 . 1 1 1 1 1 . . 1 1 . 2 1 3 1 1 1 1 . 2 1 Engine 9 | 1 . . . . . 1 . 2 . 3 1 . 1 . . . . . . . . . . . . . . . . . . . Core 9 | . . 1 1 . . . . 1 1 1 . . . . 1 1 . . . 1 . . 1 . . . . . . . . . Reactor 15 | . . . . . . . . . . . . . . 1 . . 1 . . . 1 . 1 1 3 1 1 1 1 . 2 1 Propulsion 149 | 2 1 . 6 . . 3 2 14 9 24 5 1 7 2 7 6 . 2 5 . 3 4 11 1 . 4 3 3 2 2 8 12 Treads 18 | . . . . . . . . . . . 4 1 2 1 . . . . . . . . . . . . . . . . 1 9 Leg 59 | 2 1 . 6 . . 3 2 12 9 10 . . 1 1 4 6 . 2 . . . . . . . . . . . . . . Wheel 8 | . . . . . . . . . . 2 1 . 4 . 1 . . . . . . . . . . . . . . . . . Hover 9 | . . . . . . . . 1 . 8 . . . . . . . . . . . . . . . . . . . . . . Flight 55 | . . . . . . . . 1 . 4 . . . . 2 . . . 5 . 3 4 11 1 . 4 3 3 2 2 7 3 Utility 135 | . 2 . 3 1 1 2 1 3 3 10 10 3 3 2 9 4 . 4 2 5 8 4 5 6 . 8 3 7 3 5 10 8 Device 35 | . . . . . . 1 . 1 1 5 2 . 1 . 3 . . . . 3 1 1 . 1 . . . 1 2 1 4 7 Storage 12 | . 1 . 1 . 1 . . . . . . . 1 . 1 . . . 2 . 2 . 2 . . . 1 . . . . . Processor 14 | . 1 . . 1 . . 1 . . . 2 . . . 1 . . . . . 4 . 1 . . 1 . 1 . 1 . . Hackware 51 | . . . . . . . . . . 3 1 2 1 1 3 1 . 4 . 2 1 3 2 5 . 7 1 5 1 3 5 . Protection 23 | . . . 2 . . 1 . 2 2 2 5 1 . 1 1 3 . . . . . . . . . . 1 . . . 1 1 Artifact . | . . . . . . . . . . . . . . . . . . . . . . . . . . . . . . . . . Weapon 158 | 2 1 2 5 1 1 7 4 14 12 5 9 . 10 3 3 6 3 3 3 5 3 1 9 2 1 14 1 1 1 4 7 15 Energy Gun 32 | 2 1 2 4 1 . 5 1 7 2 1 4 . . . . . . . . 1 . . . . . . . . . . 1 . Energy Cannon 11 | . . . 1 . . . . . . . . . . . . . . . . . . . . . . . . . . 1 3 6 Ballistic Gun 15 | . . . . . . . 1 1 . . 1 . . 1 1 2 2 1 1 2 1 . 1 . . . . . . . . . Ballistic Cannon 20 | . . . . . . . . 1 5 2 1 . 4 1 . 2 . . . . . . 2 . . . . . . 1 . 1 Launcher 6 | . . . . . . . 2 2 . . . . . . . 1 1 . . . . . . . . . . . . . . . Special Weapon 34 | . . . . . . . . . . . . . 4 1 2 1 . 2 2 2 1 1 3 1 1 7 . 1 . 1 1 3 Impact Weapon 21 | . . . . . . . . . . 1 3 . 1 . . . . . . . 1 . 3 1 . 7 1 . 1 1 1 . Slashing Weapon 11 | . . . . . 1 2 . 3 5 . . . . . . . . . . . . . . . . . . . . . . . Piercing Weapon 5 | . . . . . . . . . . . . . . . . . . . . . . . . . . . . . . . . 5 Special Melee Weapon 3 | . . . . . . . . . . 1 . . 1 . . . . . . . . . . . . . . . . . 1 . Unidentified Prototypes 27 | . . . 1 . . . 1 3 . 4 3 . . . 4 . 1 . . . 2 . 5 . . . 1 . . . 2 . Corrupted Parts 6 | . . 1 1 . . 1 . . 1 . . . . . . 2 . . . . . . . . . . . . . . . . System Corruption 21 | . . 5 1 . . 2 . . 2 . . . . . . 11 . . . . . . . . . . . . . . . . Parts Lost 137 | . . 1 . . . 8 . 9 5 20 1 6 . 5 2 6 2 . 3 3 . 7 5 1 . 12 2 6 . 4 7 22 Power 15 | . . . . . . 1 . 2 1 3 1 1 . . . 1 . . . . . . 1 . . 1 . 1 . . 1 1 Propulsion 64 | . . . . . . 2 . 4 4 12 . 5 . 3 2 1 . . 2 1 . 3 2 . . 4 2 3 . 2 1 11 Utility 45 | . . . . . . 2 . 2 . 4 . . . 1 . 4 1 . 1 1 . 4 2 1 . 7 . 1 . 1 4 9 Weapon 13 | . . 1 . . . 3 . 1 . 1 . . . 1 . . 1 . . 1 . . . . . . . 1 . 1 1 1 Highest Loss Streak 9 | . . 1 . . . 5 . 5 2 9 1 6 . 3 1 2 2 . 3 2 . 5 5 1 . 5 2 2 . 2 4 4 To Critical Strikes . | . . . . . . . . . . . . . . . . . . . . . . . . . . . . . . . . . Average Slot Usage (%) 86 | . 88 100 93 100 89 98 100 98 89 74 76 85 77 78 82 90 88 91 96 76 81 87 85 93 95 88 78 82 84 80 84 72 Engine 2 | . 14 14 . . . 10 9 5 . 4 4 5 3 5 . . . . . . . . . . . . . . . . . . Core 2 | . . . 11 11 11 . . 3 8 . . . . . 4 4 . . . 4 3 . 1 . . . . . . . . . Reactor 1 | . . . . . . . . . . . . . . . . . 4 5 5 1 1 5 2 4 4 3 4 4 4 4 4 3 Treads 2 | . . . . . . . . . . . 17 19 4 2 2 . . . . . . . . . . . . . . . . 10 Leg 16 | . 28 28 29 33 33 32 36 35 35 20 . . 2 . 8 28 35 35 30 . . . . . . . . . . . . . Wheel 2 | . . . . . . . . . . . 2 6 12 18 5 . . . . . . . . . . . . . . . . . Flight 5 | . . . . . . . . . . 1 . . . . 3 . . . 2 18 17 22 27 28 28 27 26 21 21 19 18 4 Device 4 | . . . . . . 1 9 8 7 6 4 . . . 1 1 . . . 8 9 4 4 4 4 1 . 3 6 8 8 14 Storage 5 | . 10 14 11 11 11 11 9 9 9 3 . . . 6 5 5 5 5 4 . . 5 4 4 4 4 4 4 4 4 4 3 Processor 5 | . 6 14 11 11 11 9 9 9 1 . 11 5 . . 3 . . . . . 10 10 6 9 9 8 5 7 8 11 12 8 Hackware 14 | . . . . . . . . . . 6 7 19 24 20 26 29 23 26 35 30 26 27 25 34 38 34 27 27 30 23 28 17 Protection 6 | . . . 8 11 11 11 9 8 9 4 9 14 13 9 3 4 5 5 4 . . . . . . . . 3 . . 2 2 Energy Gun 5 | . 28 28 20 22 2 19 16 10 1 3 6 . . . . . . . . . . . . . . . . . . . . . Ballistic Cannon 1 | . . . . . . . . 2 10 4 1 6 3 3 . 2 . . . . . . 2 . . . . . . . . . Impact Weapon 2 | . . . . . . . . . . 3 4 6 6 6 5 5 5 5 5 5 5 5 3 1 3 1 3 4 4 3 3 . Peak Build Rating 166 | 5 8 9 23 24 24 25 29 37 35 40 62 62 61 60 74 72 66 76 78 84 113 111 131 128 125 131 139 145 148 152 159 166 Average Rating 61 | 4 6 7 15 23 20 22 26 30 31 31 47 54 49 52 66 62 64 67 73 73 93 102 112 123 123 115 130 137 145 141 152 133 On Entrance 67 | . 5 8 9 23 24 20 20 29 25 35 9 62 36 53 50 71 63 66 72 69 68 110 94 122 123 125 113 138 138 148 139 155 Naked Turns . | . . . . . . . . . . . . . . . . . . . . . . . . . . . . . . . . . Heaviest Build 82 | 9 14 14 41 41 55 66 65 68 78 82 48 48 38 38 40 52 53 53 53 28 42 42 44 45 44 44 53 56 60 60 62 76 Greatest Support 305 | 20 20 20 36 36 36 38 58 60 51 74 112 28 76 76 55 100 100 100 100 29 42 43 44 45 45 45 59 62 62 64 64 305 Greatest Overweight (x) 5 | . . . 1 1 1 2 1 1 2 1 1 1 . 1 1 1 . . 1 . . 1 1 . . . . . 1 . 1 5 Average Overweight (x) . | . . . . 1 . 1 1 . 1 . . . . . . . . . . . . . . . . . . . . . . . Largest Inventory Capacity 25 | 5 8 8 15 15 20 20 20 20 20 20 5 5 10 10 15 15 15 15 25 5 15 15 15 15 15 15 15 15 15 15 15 15 Average Capacity 13 | 5 7 8 10 15 15 20 20 20 20 11 5 5 5 10 13 15 15 15 13 5 5 15 15 15 15 15 15 15 15 15 15 13 Most Carried 20 | 1 8 8 15 15 15 16 20 20 20 20 5 5 7 10 15 15 15 15 15 5 12 14 15 15 15 15 14 14 15 15 15 15 Average Carried 11 | . 6 7 10 14 14 12 15 19 17 11 4 4 5 8 11 14 14 14 13 4 4 11 12 15 14 12 11 11 14 14 14 11 Final Capacity 20 | 5 8 8 15 15 20 20 20 20 20 5 5 5 10 10 15 15 15 15 5 5 15 15 15 15 15 15 15 15 15 15 15 5 Final Carried 20 | 1 8 7 15 15 15 10 20 18 20 5 5 5 7 10 15 15 15 14 5 5 12 9 15 15 15 11 12 11 14 14 15 5 Class Distribution -------------------- 28% | Scavenger-Mutant 21% | Hacker-Mutant 15% | Mutant 10% | Bothacker-Mutant 9% | Botlord-Sprinter 3% | Bothacker-Sprinter Dominant Class ---------------- Mutant | -10/Materials Mutant | -10/Mines Scavenger-Mutant | -9/Materials Scavenger-Mutant | -9/Mines Scavenger-Mutant | -9/Exiles Mutant | -8/Mines Scavenger-Mutant | -8/Materials Scavenger-Mutant | -8/Storage Scavenger-Mutant | -8/Garrison Mutant | -7/Factory Scout | -6/Factory Hacker-Mutant | -6/Garrison Hacker-Mutant | -6/Factory Hacker-Mutant | -6/Garrison Bothacker-Mutant | -5/Factory Bothacker-Mutant | -5/Extension Bothacker-Mutant | -5/Cetus Commander-Mutant | -5/Archives Scavenger-Mutant | -5/Hub_04(d) Hacker-Mutant | -5/Garrison Hacker-Mutant | -4/Factory Bothacker-Sprinter | -4/Garrison Bothacker-Sprinter | -3/Research Botlord-Sprinter | -3/Garrison Botlord-Sprinter | -3/Research Botlord-Sprinter | -3/Garrison Botlord-Sprinter | -2/Research Botlord-Sprinter | -2/Garrison Botlord-Sprinter | -2/Research Commander-Sprinter | -2/Garrison Botlord-Sprinter | -1/Access Botlord-Mutant | -1/Command Resources | -11 -10 -10 -9 -9 -9 -8 -8 -8 -8 -7 -6 -6 -6 -6 -5 -5 -5 -5 -5 -5 -4 -4 -3 -3 -3 -3 -2 -2 -2 -2 -1 -1 ----------- Run | Yrd Mat Min Mat Min Exi Min Mat Sto Gar Fac Fac Gar Fac Gar Fac Ext Cet Arc Hub Gar Fac Gar Res Gar Res Gar Res Gar Res Gar Acc Com Matter Collected 8537 | 237 53 10 179 38 . 133 297 643 517 595 289 115 630 438 277 359 8 450 182 241 80 246 437 95 40 445 . 258 74 429 35 707 Remotely . | . . . . . . . . . . . . . . . . . . . . . . . . . . . . . . . . . Salvage Created 8626 | . 329 139 479 320 . 386 429 1093 432 611 367 26 504 284 558 409 . 301 173 . 80 . 242 . . 24 91 . 74 179 253 843 Parts 366 | . 23 13 29 13 . 33 24 44 21 12 19 . 16 4 15 23 . 9 4 . 2 . 7 . . . 1 . 2 2 11 39 Haulers Intercepted 4 | . 1 . . . . . . 1 . . . . . . 2 . . . . . . . . . . . . . . . . . Recyclers Shooed 7 | . . . . . . . . 5 . 2 . . . . . . . . . . . . . . . . . . . . . . Parts Field Recycled . | . . . . . . . . . . . . . . . . . . . . . . . . . . . . . . . . . Retrieved Matter . | . . . . . . . . . . . . . . . . . . . . . . . . . . . . . . . . . Parts Self-Destructed . | . . . . . . . . . . . . . . . . . . . . . . . . . . . . . . . . . Prevented . | . . . . . . . . . . . . . . . . . . . . . . . . . . . . . . . . . Kills | -11 -10 -10 -9 -9 -9 -8 -8 -8 -8 -7 -6 -6 -6 -6 -5 -5 -5 -5 -5 -5 -4 -4 -3 -3 -3 -3 -2 -2 -2 -2 -1 -1 ------- Run | Yrd Mat Min Mat Min Exi Min Mat Sto Gar Fac Fac Gar Fac Gar Fac Ext Cet Arc Hub Gar Fac Gar Res Gar Res Gar Res Gar Res Gar Acc Com Combat Hostiles Destroyed 165 | . 7 7 8 7 . 16 7 24 12 9 13 3 4 9 3 8 . . 1 . 1 . 4 . . 1 1 . 1 2 4 13 Melee 6 | . . . . . . . . . 1 . 1 . . . . . . . . . . . 1 . . . . . 1 . . 2 Guns 71 | . 6 7 8 5 . 13 5 14 1 3 2 . . 3 3 . . . . . 1 . . . . . . . . . . . Cannons 50 | . . . . . . . . 2 9 4 5 3 4 6 . 4 . . . . . . 2 . . . . . . . 2 9 AOE 19 | . . . . 2 . 3 . 7 . . 3 . . . . 3 . . 1 . . . . . . . . . . . . . Classes Destroyed 17 | . 4 . 3 1 . . 1 2 3 . . . . . 1 2 . . . . . . . . . . . . . . . . Worker 10 | . . . . . . . 1 1 . 1 . . 1 . 1 . . . 4 . . . . . . . . . . . . 1 Builder 3 | . . . . . . . . . . . . . . . . 3 . . . . . . . . . . . . . . . . Tunneler 1 | . . . . . . . . . . . . . . . 1 . . . . . . . . . . . . . . . . . Hauler 4 | . 1 . . . . . . 1 . . . . . . 2 . . . . . . . . . . . . . . . . . Recycler 10 | . . . . 1 . . . 1 . 4 . . 3 . 1 . . . . . . . . . . . . . . . . . Mechanic 2 | . . . . . . . . 1 . 1 . . . . . . . . . . . . . . . . . . . . . . Operator 10 | . . . 1 . . . . . . 2 . . . . . . . 5 2 . . . . . . . . . . . . . Watcher 10 | . 2 . 2 . . . . . . . . . 2 . 1 1 . . 1 . . . 1 . . . . . . . . . Swarmer 48 | . 3 7 . 3 . 13 . . 4 6 7 . . . . 3 . . . . . . . . . 1 . . . . . 1 Grunt 43 | . 4 . 3 4 . 3 2 15 . . . . . 6 1 2 . . . . . . 1 . . . 1 . 1 . . . Brawler 2 | . . . . . . . . . 1 . . . . . . . . . 1 . . . . . . . . . . . . . Duelist 8 | . . . 2 . . . 1 4 1 . . . . . . . . . . . . . . . . . . . . . . . Protector 2 | . . . . . . . . 1 . 1 . . . . . . . . . . . . . . . . . . . . . . Sentry 29 | . . . 3 . . . 4 4 3 1 4 3 2 1 . . . . . . 1 . . . . . . . . 2 . 1 Hunter 9 | . . . . . . . . . 2 . 1 . . . . 1 . . . . . . 1 . . . . . . . . 4 Programmer 20 | . . . . . . . . . 1 1 1 . 2 2 2 1 . . . . . . 2 . . . . . . . 4 4 Behemoth 1 | . . . . . . . . . . . . . . . . 1 . . . . . . . . . . . . . . . . M Guard 1 | . . . . . . . . . . . . . . . . . . . . . . . . . . . . . . . . 1 Combat Programmer 2 | . . . . . . . . . . . . . . . . . . . . . . . . . . . . . . . . 2 Thug 1 | . . . . . . . . . . . . . . . . . . 1 . . . . . . . . . . . . . . Butcher 1 | . . . . . . . . . . . . . . . . . . 1 . . . . . . . . . . . . . . Best Kill Streak 7 | . 3 3 2 3 . 4 2 6 3 7 3 2 2 3 4 3 . 2 7 . 1 . 2 . . 1 1 . 1 1 2 5 Combat Bots Only 5 | . 3 3 2 3 . 4 2 5 3 3 3 2 1 3 2 3 . . 1 . 1 . 2 . . 1 1 . 1 1 2 4 Max Kills in Single Turn 7 | . 1 2 1 2 . 2 1 2 1 1 3 1 1 1 1 3 . 1 7 . 1 . 1 . . 1 1 . 1 1 1 1 Gunslinging . | . . . . . . . . . . . . . . . . . . . . . . . . . . . . . . . . . Exploded 3 | . . . . 2 . 2 . 2 . . 3 . . . . 3 . . 1 . . . . . . . . . . . . . Melee 1 | . . . . . . . . . 1 . 1 . . . . . . . . . . . 1 . . . . . 1 . . 1 Uniques/NPCs Destroyed . | . . . . . . . . . . . . . . . . . . . . . . . . . . . . . . . . . Combat | -11 -10 -10 -9 -9 -9 -8 -8 -8 -8 -7 -6 -6 -6 -6 -5 -5 -5 -5 -5 -5 -4 -4 -3 -3 -3 -3 -2 -2 -2 -2 -1 -1 -------- Run | Yrd Mat Min Mat Min Exi Min Mat Sto Gar Fac Fac Gar Fac Gar Fac Ext Cet Arc Hub Gar Fac Gar Res Gar Res Gar Res Gar Res Gar Acc Com Hostile Shots Fired 2504 | . 37 38 37 26 . 66 44 151 170 258 221 189 50 128 32 110 15 1 24 45 . 68 50 19 . 57 34 82 12 57 157 326 Missed 907 | . 19 13 15 7 . 14 15 47 54 96 74 61 23 47 10 44 6 . 7 23 . 29 19 8 . 23 14 32 4 20 98 85 Damage Taken 29531 | . 212 195 289 191 . 843 573 1894 1413 2694 1183 834 227 1261 453 1344 228 24 610 486 . 989 844 155 . 666 349 1145 90 625 1247 8467 Core 4375 | . 55 28 55 25 . 48 109 337 74 526 68 80 . 104 82 95 86 . . 43 . 213 294 41 . 82 37 104 29 149 245 1366 Absorbed by Shields 828 | . . . . . . . . . . . . . . . . 73 44 . . . . 11 . 21 . 45 . 35 95 395 50 59 Reduced by Siege Mode 1163 | . . . . . . . . . . . . . . . . . . . . . . . . . . . . . . . . 1163 Redirected to Shielding 159 | . . . . . . . . . . . . . . . . . . . . . . . . . . . . . . . 159 . Ignored by Resistances 467 | . . . . . . . . . . . 263 152 . . . 52 . . . . . . . . . . . . . . . . Regen/Repaired (Parts) 1110 | . . . 122 . . . . 227 . . . . 181 . 174 . . . . . . . 121 . . . . . 285 . . . Core Remaining (%) 62 | 100 . 66 . . . 68 . . 5 24 . . . 70 . . . . . 69 . 81 . . . 67 . . . 78 . . Volleys Fired 852 | . 27 14 29 11 . 22 35 73 31 34 32 24 45 71 22 45 7 44 2 31 7 15 20 1 . 30 . 18 8 28 13 113 Largest 2 | . 2 2 2 2 . 2 2 2 2 2 2 1 1 1 1 1 1 1 1 1 1 1 1 1 . 1 . 1 1 2 1 2 Hottest 240 | . 80 80 100 100 . 100 85 126 124 128 145 40 40 40 33 57 39 35 35 35 35 35 66 5 . 7 . 7 7 186 120 240 Shots Fired 1136 | . 54 28 58 23 . 42 66 137 61 49 46 24 46 72 22 45 6 43 2 30 7 15 20 1 . 30 . 18 8 33 13 137 Gun 558 | . 54 28 58 23 . 42 61 110 11 15 28 . . 21 21 14 2 36 1 25 2 6 . . . . . . . . . . Cannon 411 | . . . . . . . . 19 50 34 18 24 35 43 . 28 . . . . . . 11 . . . . . . 10 12 127 Launcher 18 | . . . . . . . 5 8 . . . . . . . 1 4 . . . . . . . . . . . . . . . Special 149 | . . . . . . . . . . . . . 11 8 1 2 . 7 1 5 5 9 9 1 . 30 . 18 8 23 1 10 Kinetic 437 | . . . . . . . . 44 50 34 18 24 35 64 21 42 2 36 1 25 2 6 11 . . . . . . 5 . 17 Thermal 266 | . . . . . . . . 85 11 15 28 . . . . . . . . . . . . . . . . . . 5 12 110 Explosive 18 | . . . . . . . 5 8 . . . . . . . 1 4 . . . . . . . . . . . . . . . Electromagnetic 266 | . 54 28 58 23 . 42 61 . . . . . . . . . . . . . . . . . . . . . . . . . Robot Hit Streak 42 | . 7 4 24 8 . 12 10 17 10 10 25 10 6 12 4 5 5 5 6 3 7 8 5 3 . 6 . 21 24 24 13 42 Robot Miss Streak 8 | . 4 3 2 3 . 4 5 4 4 8 3 2 4 4 3 5 2 6 1 5 . 2 1 . . 3 . . 1 1 2 2 Penetration Max 1 | . . . . . . . . . . . . . . 1 1 . . 1 . 1 . . . . . . . . . . . . Secondary Targets 6 | . . 1 . 1 . 2 . 2 . . . . . . . . . . . . . . . . . . . . . . . . Max Gunslinging Chain 1 | . . 1 . 1 . 1 . 1 . . . . . . . . . . . . . . . . . . . . . . . . Shots Hit Robots 923 | . 31 13 45 18 . 26 43 107 46 61 41 20 31 54 21 32 2 21 2 14 7 17 21 1 . 27 3 19 8 45 14 133 Core Hits 345 | . 13 7 21 13 . 19 15 73 14 27 20 6 12 15 8 12 4 10 10 1 2 1 3 . . . . . 1 3 2 33 Critical Kills 7 | . . . . . . . . . . . . . . . . 1 . . . . 1 . . . . . . . 1 . 2 2 Critical Parts Destroyed 21 | . . . . . . . . . . 3 . . . . 3 1 . 4 . 2 . 2 . . . 1 1 . . 4 . . Critical Strikes 53 | . . 1 . . . . . 5 5 6 1 1 1 3 3 2 . 4 . 2 1 2 1 . . 1 1 . 1 4 2 6 Burn 11 | . . . . . . . . 5 3 3 . . . . . . . . . . . . . . . . . . . . . . Meltdown 4 | . . . . . . . . . . . . . . . . . . . . . . . . . . . . . . . 2 2 Destroy 10 | . . . . . . . . . . . . . . . . 1 . 4 . 2 1 2 . . . . . . . . . . Blast 7 | . . . . . . . . . . . 1 1 1 3 . . . . . . . . 1 . . . . . . . . . Corrupt 1 | . . 1 . . . . . . . . . . . . . . . . . . . . . . . . . . . . . . Smash 14 | . . . . . . . . . . 3 . . . . 3 1 . . . . . . . . . 1 1 . 1 4 . . Sever 2 | . . . . . . . . . 2 . . . . . . . . . . . . . . . . . . . . . . . Impale 4 | . . . . . . . . . . . . . . . . . . . . . . . . . . . . . . . . 4 Melee Attacks 391 | . . . . . . 2 . 7 34 35 13 12 23 17 15 12 . 2 16 11 3 28 15 12 4 17 9 23 6 23 17 35 Impact 305 | . . . . . . . . . . 33 13 12 21 17 15 12 . 2 16 11 3 28 15 12 4 17 9 23 6 23 12 1 Slashing 43 | . . . . . . 2 . 7 34 . . . . . . . . . . . . . . . . . . . . . . . Piercing 34 | . . . . . . . . . . . . . . . . . . . . . . . . . . . . . . . . 34 Sneak Attacks 26 | . . . . . . . . 1 2 7 . . 1 . 4 2 . 2 . . . . 3 . . . . . . 3 . 1 Combat Hostiles 7 | . . . . . . . . . . . . . . . . . . . . . . . 3 . . . . . . 3 . 1 Follow-up Attacks . | . . . . . . . . . . . . . . . . . . . . . . . . . . . . . . . . . Damage Inflicted 29126 | . 514 166 702 442 . 678 680 3440 1412 2155 1450 745 949 1863 878 1471 191 766 1291 340 47 357 809 . . 257 168 130 102 997 586 5540 Guns 7210 | . 467 166 611 333 . 461 588 1584 108 268 549 . . 410 328 197 . 614 . 340 47 139 . . . . . . . . . . Cannons 12024 | . . . . . . . . 469 642 523 422 745 906 1359 . 557 . . . . . . 384 . . . . . . 382 530 5105 Explosions 3919 | . 43 . 91 109 . 201 87 1288 . . 271 . . . . 375 191 . 1263 . . . . . . . . . . . . . Melee 5888 | . . . . . . . . 70 660 1336 207 . 43 94 550 342 . 152 28 . . 218 425 . . 257 168 130 102 615 56 435 Ramming 85 | . 4 . . . . 16 5 29 2 28 1 . . . . . . . . . . . . . . . . . . . . . Kinetic 9222 | . . . . . . . . 783 642 523 422 745 906 1769 328 754 . 614 . 340 47 139 384 . . . . . . 195 . 631 Thermal 7917 | . 43 . 91 109 . 201 87 1270 108 268 549 . . . . . . . . . . . . . . . . . . 187 530 4474 Explosive 2125 | . . . . . . . . 1288 . . 271 . . . . 375 191 . . . . . . . . . . . . . . . Electromagnetic 3889 | . 467 166 611 333 . 461 588 . . . . . . . . . . . 1263 . . . . . . . . . . . . . Impact 4723 | . . . . . . . . . . 1336 207 . 43 94 550 342 . 152 28 . . 218 425 . . 257 168 130 102 615 56 . Slashing 730 | . . . . . . . . 70 660 . . . . . . . . . . . . . . . . . . . . . . . Piercing 435 | . . . . . . . . . . . . . . . . . . . . . . . . . . . . . . . . 435 Highest Corruption 30 | . . 5 1 1 1 17 . . 2 7 2 2 2 6 4 15 15 15 16 16 . 6 . . . . 4 4 4 4 4 30 Average Corruption 4 | . . 5 1 1 1 3 . . 2 2 1 2 2 5 3 9 15 15 15 16 . 6 . . . . 4 4 4 4 2 16 Corruption Purged 17 | . . . . . . . . . . 5 . . . . 5 . . . . . . . . . . . . . . . . 7 Corruption Blocked 15 | . . . . . . . . . . . . . . . . . . . . . . . 2 . . 12 1 . . . . . Effects 286 | . . . 7 10 1 15 . . 17 13 4 6 29 18 11 14 15 13 19 21 . 2 . . . . 2 9 5 12 10 33 Message Errors 73 | . . . 2 4 . 4 . . 3 1 4 1 8 5 5 3 4 3 5 3 . 1 . . . . . 2 . 4 6 5 Matter Fused 59 | . . . 1 2 1 3 . . 6 1 . 3 4 1 2 3 3 4 7 3 . 1 . . . . 2 3 . 2 . 7 Heat Flow Errors 29 | . . . . . . 1 . . . 1 . . 3 4 2 2 2 1 2 3 . . . . . . . 1 2 1 1 3 Energy Discharges 38 | . . . 2 1 . . . . 3 4 . . 6 1 1 2 1 3 1 3 . . . . . . . 1 3 2 . 4 Parts Rejected 4 | . . . 2 . . . . . . 1 . . . . . . . . . . . . . . . . . . . . . 1 Parts Fused 3 | . . . . . . . . . . . . . . 2 . . 1 . . . . . . . . . . . . . . . Data Loss (minor) 39 | . . . . 2 . 3 . . 2 4 . 2 3 1 1 1 2 1 4 4 . . . . . . . 2 . 2 2 3 Data Loss (major) 9 | . . . . . . 2 . . . 1 . . 3 . . 1 1 . . . . . . . . . . . . . 1 . Misfires 10 | . . . . 1 . 1 . . 3 . . . 1 2 . 1 . . . . . . . . . . . . . . . 1 Alerts 3 | . . . . . . . . . . . . . 1 1 . . . . . . . . . . . . . . . 1 . . Misdirections 5 | . . . . . . . . . . . . . . . . . . . . 4 . . . . . . . . . . . 1 Weapon Failures 14 | . . . . . . 1 . . . . . . . 1 . 1 1 1 . 1 . . . . . . . . . . . 8 Overload Shots . | . . . . . . . . . . . . . . . . . . . . . . . . . . . . . . . . . Overflow Damage 2270 | . . . 1 . . 66 . 2 65 625 87 4 119 78 285 176 . 71 91 . . 6 206 . . 99 61 . . 139 25 64 Projectiles 314 | . . . . . . . . . 12 . . 4 98 78 . 14 . . . . . . 19 . . . . . . . 25 64 Explosions 160 | . . . 1 . . 66 . 2 . . . . . . . . . . 91 . . . . . . . . . . . . . Melee 1796 | . . . . . . . . . 53 625 87 . 21 . 285 162 . 71 . . . 6 187 . . 99 61 . . 139 . . Knockbacks 87 | . . . . . . . . 21 2 22 3 . 5 9 2 6 . 2 . . . 2 8 . . 1 1 . 1 1 1 . Impact 22 | . . . . . . . . . . 6 1 . 1 1 2 . . 2 . . . 1 3 . . 1 1 . 1 1 1 . Kinetic 57 | . . . . . . . . 17 2 14 2 . 4 8 . 5 . . . . . . 5 . . . . . . . . . Secondary 8 | . . . . . . . . 4 . 2 . . . . . 1 . . . . . 1 . . . . . . . . . . Self-Inflicted Damage 286 | . . . . . . 70 54 32 . . . . . . . 40 . . 90 . . . . . . . . . . . . . Shots 6 | . . . . . . 1 2 1 . . . . . . . 1 . . 1 . . . . . . . . . . . . . Rammed 1 | . . . . . . . . . . . 1 . . . . . . . . . . . . . . . . . . . . . Targets Rammed 14 | . 1 . . . . 3 1 4 2 2 1 . . . . . . . . . . . . . . . . . . . . . Kicked 13 | . 1 . . . . 3 1 4 2 2 . . . . . . . . . . . . . . . . . . . . . . Crushed . | . . . . . . . . . . . . . . . . . . . . . . . . . . . . . . . . . Highest Temperature 373 | . 168 90 267 300 . 285 18 257 360 373 230 107 201 271 158 261 244 280 240 189 . . 20 14 47 30 51 112 159 245 143 372 Average Temperature 73 | . 65 33 75 107 . 110 6 83 92 106 82 41 99 54 80 124 119 158 108 90 . . 5 6 13 7 13 34 75 113 56 98 Received Heat Transfer 4282 | . 93 . 114 66 . 27 126 801 117 585 198 312 48 330 36 193 22 . 45 153 . 126 18 18 . 91 63 129 16 90 18 447 Effects 12 | . . . . 2 . 6 . 1 1 1 . . . 1 . . . . . . . . . . . . . . . . . . Energy Bleed 5 | . . . . 1 . 3 . 1 . . . . . . . . . . . . . . . . . . . . . . . . Interference 4 | . . . . . . 3 . . . . . . . 1 . . . . . . . . . . . . . . . . . . Short Circuit 3 | . . . . 1 . . . . 1 1 . . . . . . . . . . . . . . . . . . . . . . Siege Activations 2 | . . . . . . . . . . . . . . . . . . . . . . . . . . . . . . . . 2 Total Turns 181 | . . . . . . . . . . . . . . . . . . . . . . . . . . . . . . . . 181 Longest Duration 122 | . . . . . . . . . . . . . . . . . . . . . . . . . . . . . . . . 122 Robots Corrupted 27 | . 1 . . . . . 2 . . 6 1 . 1 . 5 2 . 2 1 . . . 2 . . 1 1 . . 2 . . Combat Hostiles 12 | . 1 . . . . . 2 . . 2 1 . . . . 1 . . . . . . 1 . . 1 1 . . 2 . . Parts Fried 75 | . 3 1 4 2 . 2 3 . . 15 2 . 4 . 7 7 . 6 7 . . . 6 . . 2 2 . . 2 . . Impact Corruptions 59 | . . . . . . . . . . 21 3 . 1 . 11 4 . 4 . . . 1 5 . . 3 1 . . 5 . . Robots Melted 7 | . . . . . . . . 1 1 . 1 . . . . . . . . . . . . . . . . . . . 2 2 Combat Hostiles 7 | . . . . . . . . 1 1 . 1 . . . . . . . . . . . . . . . . . . . 2 2 Parts Melted 26 | . . . . . . . . 14 2 . 4 . . . . . . . . . . . . . . . . . . . 2 4 Heat Transferred 8299 | . 50 . 100 150 . 150 100 2841 407 769 1077 . . . . . . . . . . . . . . . . . . 148 370 2137 Parts Sabotaged . | . . . . . . . . . . . . . . . . . . . . . . . . . . . . . . . . . Parts Stolen . | . . . . . . . . . . . . . . . . . . . . . . . . . . . . . . . . . Parts Stripped . | . . . . . . . . . . . . . . . . . . . . . . . . . . . . . . . . . Power Chain Reactions 12 | . 1 . 3 2 . 2 2 . . . . . . . . . . . 2 . . . . . . . . . . . . . Alert | -11 -10 -10 -9 -9 -9 -8 -8 -8 -8 -7 -6 -6 -6 -6 -5 -5 -5 -5 -5 -5 -4 -4 -3 -3 -3 -3 -2 -2 -2 -2 -1 -1 ------- Run | Yrd Mat Min Mat Min Exi Min Mat Sto Gar Fac Fac Gar Fac Gar Fac Ext Cet Arc Hub Gar Fac Gar Res Gar Res Gar Res Gar Res Gar Acc Com Peak Influence 1411 | . 326 228 372 109 . 258 194 1030 1411 837 287 386 215 306 190 574 520 399 824 746 380 270 280 191 202 411 270 284 160 754 839 518 Initial 740 | . . 48 88 97 . . 39 27 670 740 179 200 202 1 160 18 320 208 8 426 380 . 139 93 107 151 117 202 148 87 443 455 Average 279 | . 172 145 244 78 . 94 92 271 1061 556 129 285 63 146 94 223 495 307 208 549 68 157 116 140 142 248 166 225 114 484 681 257 Maximum Alert Level 4 | . 1 1 1 . . 1 . 3 4 3 1 1 1 1 . 2 2 1 3 3 1 1 1 . 1 2 1 1 . 3 3 2 Low Security (%) 56 | 100 68 88 38 100 . 83 100 58 . . 75 . 80 82 100 57 . 14 67 . 93 56 79 100 97 20 91 22 100 16 . 48 Level 1 19 | . 31 11 61 . . 16 . 25 . 4 24 100 19 17 . 25 9 85 5 . 6 43 20 . 2 70 8 77 . 12 . 30 Level 2 13 | . . . . . . . . 2 7 72 . . . . . 16 90 . 22 90 . . . . . 8 . . . 45 33 21 Level 3 8 | . . . . . . . . 12 47 22 . . . . . . . . 4 9 . . . . . . . . . 26 66 . Level 4 3 | . . . . . . . . . 45 . . . . . . . . . . . . . . . . . . . . . . . Level 5 . | . . . . . . . . . . . . . . . . . . . . . . . . . . . . . . . . . High Security . | . . . . . . . . . . . . . . . . . . . . . . . . . . . . . . . . . Max Security . | . . . . . . . . . . . . . . . . . . . . . . . . . . . . . . . . . Squads Dispatched 70 | . 5 . 3 . . . 8 9 . 8 3 . 6 . 1 2 . . 10 . 1 . 2 . 1 . . . 1 . 8 2 Investigation 25 | . 4 . 3 . . . 2 3 . 1 2 . 1 . . 1 . . 2 . 1 . 1 . . . . . 1 . 3 . Extermination 13 | . . . . . . . . . . 2 1 . 4 . 1 . . . 1 . . . 1 . 1 . . . . . 1 1 Reinforcement 16 | . 1 . . . . . 3 2 . 3 . . 1 . . 1 . . 3 . . . . . . . . . . . 1 1 Assault 6 | . . . . . . . 1 2 . 2 . . . . . . . . 1 . . . . . . . . . . . . . Garrison 10 | . . . . . . . 2 2 . . . . . . . . . . 3 . . . . . . . . . . . 3 . Intercept . | . . . . . . . . . . . . . . . . . . . . . . . . . . . . . . . . . Searches Triggered 2 | . . . . . . . . . . . . . . . . . . . . . . . . . . . . . . . 2 . Construction Impeded 2 | . . . . . . . . . . . . . . . . 1 . . 1 . . . . . . . . . . . . . Haulers Reinforced . | . . . . . . . . . . . . . . . . . . . . . . . . . . . . . . . . . Active Scanning Responses . | . . . . . . . . . . . . . . . . . . . . . . . . . . . . . . . . . Cargo Convoy Interrupts 2 | . . . . . . . . . . 1 . . . . 1 . . . . . . . . . . . . . . . . . Alert ID Control Effect 49 | . . . . . . . . . . . . . . . . . . . . . . 8 7 3 . 15 1 3 . 8 4 . Stealth | -11 -10 -10 -9 -9 -9 -8 -8 -8 -8 -7 -6 -6 -6 -6 -5 -5 -5 -5 -5 -5 -4 -4 -3 -3 -3 -3 -2 -2 -2 -2 -1 -1 --------- Run | Yrd Mat Min Mat Min Exi Min Mat Sto Gar Fac Fac Gar Fac Gar Fac Ext Cet Arc Hub Gar Fac Gar Res Gar Res Gar Res Gar Res Gar Acc Com Distress Signals 33 | . 1 . 2 . . . 1 1 2 2 2 . 2 . . 2 . . 6 . . . 3 . . . . . 1 . 2 6 Communications Jammed . | . . . . . . . . . . . . . . . . . . . . . . . . . . . . . . . . . Distress Signals . | . . . . . . . . . . . . . . . . . . . . . . . . . . . . . . . . . Times Spotted 671 | . 15 9 17 8 . 19 8 56 34 57 20 3 12 13 15 27 5 26 27 16 2 24 23 9 5 36 13 29 4 35 53 51 Peak Tracking Total 17 | . 5 3 4 4 . 4 3 15 15 12 4 3 2 6 3 6 5 2 12 7 1 8 7 5 5 12 6 9 2 17 17 16 Tactical Retreats 89 | . 1 1 . . . 2 1 2 3 14 2 1 1 1 1 . . . 3 4 . 5 5 1 . 2 3 6 . 5 12 13 Traps | -11 -10 -10 -9 -9 -9 -8 -8 -8 -8 -7 -6 -6 -6 -6 -5 -5 -5 -5 -5 -5 -4 -4 -3 -3 -3 -3 -2 -2 -2 -2 -1 -1 ------- Run | Yrd Mat Min Mat Min Exi Min Mat Sto Gar Fac Fac Gar Fac Gar Fac Ext Cet Arc Hub Gar Fac Gar Res Gar Res Gar Res Gar Res Gar Acc Com Traps Triggered 37 | . . . . . . . . 1 3 5 1 1 . 3 1 . . . 1 2 1 1 . 2 1 8 . 4 . . . 2 Indirectly . | . . . . . . . . . . . . . . . . . . . . . . . . . . . . . . . . . Trap Hack Attempts . | . . . . . . . . . . . . . . . . . . . . . . . . . . . . . . . . . Triggered . | . . . . . . . . . . . . . . . . . . . . . . . . . . . . . . . . . Disarmed 7 | . . . . . . . . . . . . . . . . . . . 7 . . . . . . . . . . . . . Reprogrammed . | . . . . . . . . . . . . . . . . . . . . . . . . . . . . . . . . . Reused . | . . . . . . . . . . . . . . . . . . . . . . . . . . . . . . . . . Traps Extracted . | . . . . . . . . . . . . . . . . . . . . . . . . . . . . . . . . . Installed . | . . . . . . . . . . . . . . . . . . . . . . . . . . . . . . . . . Triggered 2 | . . . . . . . . . . . . . . . 1 . . . . . . 1 . . . . . . . . . . Objects Rigged 1 | . . . . . . . . . . . . . . . . . . . 1 . . . . . . . . . . . . . Exploded 1 | . . . . . . . . . . . . . . . . . . . 1 . . . . . . . . . . . . . Machines | -11 -10 -10 -9 -9 -9 -8 -8 -8 -8 -7 -6 -6 -6 -6 -5 -5 -5 -5 -5 -5 -4 -4 -3 -3 -3 -3 -2 -2 -2 -2 -1 -1 ---------- Run | Yrd Mat Min Mat Min Exi Min Mat Sto Gar Fac Fac Gar Fac Gar Fac Ext Cet Arc Hub Gar Fac Gar Res Gar Res Gar Res Gar Res Gar Acc Com Machines Disabled 65 | . . 1 1 . . . 1 3 2 1 5 3 . 2 1 1 . 3 19 3 . 4 . 1 . 3 . 3 1 6 . 1 Max in Single Turn 17 | . . 1 1 . . . 1 1 1 1 4 1 . 1 1 1 . 1 17 1 . 1 . 1 . 1 . 1 1 1 . 1 Garrison Access 6 | . . . . . . . 1 . . 1 . . . . 1 . . . . . 1 . . . . . . . . . 2 . Garrison Relay 20 | . . . . . . . . . 1 . . 2 . 2 . . . . . 1 . 2 . 1 . 3 . 4 . 4 . . Network Hub 1 | . . . . . . . . . . . . . . . . . . . 1 . . . . . . . . . . . . . Energy Cycler 2 | . . . . . . . . . . . . . . . . 2 . . . . . . . . . . . . . . . . Machines Repaired . | . . . . . . . . . . . . . . . . . . . . . . . . . . . . . . . . . Machines Dismantled . | . . . . . . . . . . . . . . . . . . . . . . . . . . . . . . . . . Machines Sabotaged . | . . . . . . . . . . . . . . . . . . . . . . . . . . . . . . . . . Overloaded Fab Kills . | . . . . . . . . . . . . . . . . . . . . . . . . . . . . . . . . . Hacking | -11 -10 -10 -9 -9 -9 -8 -8 -8 -8 -7 -6 -6 -6 -6 -5 -5 -5 -5 -5 -5 -4 -4 -3 -3 -3 -3 -2 -2 -2 -2 -1 -1 --------- Run | Yrd Mat Min Mat Min Exi Min Mat Sto Gar Fac Fac Gar Fac Gar Fac Ext Cet Arc Hub Gar Fac Gar Res Gar Res Gar Res Gar Res Gar Acc Com Machines Accessed 137 | . 5 . 6 . 1 1 4 9 1 2 6 2 11 2 8 19 2 . 8 . 5 . 12 1 3 2 4 3 3 2 12 3 Terminals 99 | . 4 . 4 . . 1 3 6 1 1 4 2 5 2 3 19 2 . 7 . 2 . 9 1 1 2 2 3 1 2 9 3 Fabricators 2 | . . . . . . . . . . . . . . . 1 . . . . . 1 . . . . . . . . . . . Repair Stations 11 | . . . 2 . . . . 1 . . 1 . 2 . 1 . . . . . . . 1 . 1 . 1 . 1 . . . Recycling Units 5 | . 1 . . . . . 1 1 . . . . 1 . 1 . . . . . . . . . . . . . . . . . Scanalyzers 3 | . . . . . . . . . . . . . 1 . 1 . . . . . . . 1 . . . . . . . . . Garrison Access 16 | . . . . . . . . 1 . 1 1 . 2 . 1 . . . 1 . 2 . 1 . 1 . 1 . 1 . 3 . Total Hacks 429 | . 17 . 19 . 1 3 18 23 2 5 16 5 23 5 24 50 11 . 48 . 16 . 56 2 5 5 4 5 9 4 40 13 Successful 229 | . 8 . 10 . 1 2 11 11 1 3 11 2 17 3 19 27 5 . 32 . 9 . 22 1 2 1 1 3 6 1 16 4 Failed 199 | . 9 . 9 . . 1 7 12 1 2 5 3 6 2 5 22 6 . 16 . 7 . 34 1 3 4 3 2 3 3 24 9 Catastrophic 42 | . 2 . . . . . . 1 . 1 3 . . 1 1 5 . . . . 3 . 7 1 1 1 3 1 2 1 5 3 Database Lockouts 1 | . . . . . . . . . . . . . . . . 1 . . . . . . . . . . . . . . . . Manual 189 | . 13 . 9 . 1 . 17 13 1 4 8 . 10 2 6 15 1 . 24 . 8 . 30 1 1 . 1 1 4 2 14 3 Terminals 355 | . 14 . 10 . . 3 17 19 2 2 12 5 12 5 17 50 11 . 46 . 12 . 49 2 1 5 2 5 3 4 34 13 Fabricators 3 | . . . . . . . . . . . . . . . 1 . . . . . 2 . . . . . . . . . . . Repair Stations 30 | . . . 9 . . . . 2 . . 3 . 4 . 2 . . . . . . . 3 . 3 . 1 . 3 . . . Recycling Units 10 | . 3 . . . . . 1 1 . . . . 3 . 2 . . . . . . . . . . . . . . . . . Scanalyzers 6 | . . . . . . . . . . . . . 2 . 1 . . . . . . . 3 . . . . . . . . . Garrison Access 24 | . . . . . . . . 1 . 3 1 . 2 . 1 . . . 2 . 2 . 1 . 1 . 1 . 3 . 6 . Terminal Hacks 118 | . 2 . 1 . 1 2 7 3 1 1 4 2 1 3 10 24 5 . 23 . 3 . 9 1 . 1 . 3 . 1 8 2 Record 5 | . . . . . . . . . . . . . . . . . 4 . . . . . . . . . . . . . 1 . Part Schematic 6 | . . . . . . . . . . . 1 . . . . 3 . . 2 . . . . . . . . . . . . . Robot Schematic 1 | . . . . . . . . . . . . . . . . 1 . . . . . . . . . . . . . . . . Robot Analysis 10 | . 1 . 1 . . . 4 . . . . . . . 1 1 . . . . . . . . . . . . . . 2 . Prototype ID Bank 5 | . . . . . . . . . . . . . . . 1 1 . . 1 . . . 2 . . . . . . . . . Open Door 21 | . . . . . . . . 1 . . . . . . . 14 1 . . . . . . . . . . . . 1 3 1 Level Access Points 3 | . . . . . . . . . . . . . . . . . . . 1 . 1 . . . . . . . . . 1 . Branch Access Points 3 | . . . . . . . 1 . . . . . . . . 1 . . 1 . . . . . . . . . . . . . Emergency Access Points 9 | . . . . . . . . . 1 . . 1 . 1 1 . . . 2 . . . . 1 . . . 1 . . . 1 Machine Index 1 | . . . . . . . . . . . . . . . . . . . 1 . . . . . . . . . . . . . Terminal Index 4 | . . . . . . . . 1 . . 1 . . . 1 . . . 1 . . . . . . . . . . . . . Recycling Unit Index 1 | . . . . . . . . 1 . . . . . . . . . . . . . . . . . . . . . . . . Garrison Index 2 | . . . . . . . . . . . . . . . 1 . . . 1 . . . . . . . . . . . . . Unreport Threat 7 | . . . . . . . . . . 1 1 . . . 1 2 . . 2 . . . . . . . . . . . . . Disarm Traps 2 | . . . . . . . . . . . . . . . . . . . 2 . . . . . . . . . . . . . Dispatch Records 2 | . . . . . . 1 . . . . . . . . . . . . 1 . . . . . . . . . . . . . Patrol Status 1 | . . . . . . . . . . . . . . . . . . . 1 . . . . . . . . . . . . . Recall Investigation 1 | . . . . . . . . . . . . . . . . . . . . . 1 . . . . . . . . . . . Recall Extermination 1 | . . . . . . . . . . . . . 1 . . . . . . . . . . . . . . . . . . . Recall Assault 1 | . . . . . . . . . . . . . . . . . . . 1 . . . . . . . . . . . . . Hauler Manifests 2 | . . . . . . . . . . . . . . . 1 . . . 1 . . . . . . . . . . . . . Registered Components 2 | . . . . . . . . . . . . . . . 1 . . . . . . . 1 . . . . . . . . . Registered Prototypes 1 | . . . . . . . . . . . . . . . . . . . . . . . 1 . . . . . . . . . Zone Layout 20 | . 1 . . . . 1 2 . . . 1 . . . 2 1 . . 5 . 1 . 5 . . . . . . . 1 . Garrison Registry 3 | . . . . . . . . . . . . 1 . 1 . . . . . . . . . . . . . 1 . . . . Security Stations 3 | . . . . . . . . . . . . . . 1 . . . . . . . . . . . 1 . 1 . . . . Derelict Proto ID Bank 1 | . . . . . 1 . . . . . . . . . . . . . . . . . . . . . . . . . . . Fabricator Hacks 3 | . . . . . . . . . . . . . . . 1 . . . . . 2 . . . . . . . . . . . Network Status 1 | . . . . . . . . . . . . . . . 1 . . . . . . . . . . . . . . . . . Load Schematic 1 | . . . . . . . . . . . . . . . . . . . . . 1 . . . . . . . . . . . Build 1 | . . . . . . . . . . . . . . . . . . . . . 1 . . . . . . . . . . . Repair Station Hacks 21 | . . . 7 . . . . 2 . . 2 . 3 . 2 . . . . . . . 2 . 1 . . . 2 . . . Scan Component 12 | . . . 4 . . . . 1 . . 1 . 2 . 1 . . . . . . . 1 . 1 . . . 1 . . . Repair 8 | . . . 3 . . . . 1 . . . . 1 . 1 . . . . . . . 1 . . . . . 1 . . . Refit 1 | . . . . . . . . . . . 1 . . . . . . . . . . . . . . . . . . . . . Recycling Unit Hacks 6 | . 1 . . . . . . . . . . . 3 . 2 . . . . . . . . . . . . . . . . . Process 2 | . . . . . . . . . . . . . 1 . 1 . . . . . . . . . . . . . . . . . Report Inventory 2 | . 1 . . . . . . . . . . . 1 . . . . . . . . . . . . . . . . . . . Retrieve Matter 2 | . . . . . . . . . . . . . 1 . 1 . . . . . . . . . . . . . . . . . Scanalyzer 4 | . . . . . . . . . . . . . 2 . . . . . . . . . 2 . . . . . . . . . Insert Component 2 | . . . . . . . . . . . . . 1 . . . . . . . . . 1 . . . . . . . . . Analyze 2 | . . . . . . . . . . . . . 1 . . . . . . . . . 1 . . . . . . . . . Garrison Access Hacks 16 | . . . . . . . . 1 . 1 1 . 1 . 1 . . . 1 . 2 . 1 . 1 . 1 . 2 . 3 . Unlock Access 9 | . . . . . . . . 1 . . 1 . 1 . . . . . 1 . 1 . 1 . 1 . 1 . 1 . . . Seal Access 5 | . . . . . . . . . . 1 . . . . 1 . . . . . 1 . . . . . . . . . 2 . Coupler Status 2 | . . . . . . . . . . . . . . . . . . . . . . . . . . . . . 1 . 1 . Unauthorized Hacks 61 | . 5 . 2 . . . 4 5 . 1 4 . 7 . 3 3 . . 8 . 2 . 8 . . . . . 2 . 5 2 Terminals 53 | . 3 . 2 . . . 3 4 . 1 4 . 6 . 3 3 . . 7 . 2 . 8 . . . . . 1 . 4 2 Assimilate 4 | . . . . . . . . . . . . . 2 . . . . . . . . . 1 . . . . . . . 1 . Botnet 48 | . 3 . 2 . . . 3 4 . 1 4 . 4 . 3 3 . . 6 . 2 . 7 . . . . . 1 . 3 2 Detonate 1 | . . . . . . . . . . . . . . . . . . . 1 . . . . . . . . . . . . . Fabricators . | . . . . . . . . . . . . . . . . . . . . . . . . . . . . . . . . . Repair Stations . | . . . . . . . . . . . . . . . . . . . . . . . . . . . . . . . . . Recycling Units 4 | . 2 . . . . . 1 1 . . . . . . . . . . . . . . . . . . . . . . . . Monitor 1 | . 1 . . . . . . . . . . . . . . . . . . . . . . . . . . . . . . . Tunnel 3 | . 1 . . . . . 1 1 . . . . . . . . . . . . . . . . . . . . . . . . Scanalyzers . | . . . . . . . . . . . . . . . . . . . . . . . . . . . . . . . . . Garrison Access 4 | . . . . . . . . . . . . . 1 . . . . . 1 . . . . . . . . . 1 . 1 . Reprogram 2 | . . . . . . . . . . . . . 1 . . . . . 1 . . . . . . . . . . . . . Eject 2 | . . . . . . . . . . . . . . . . . . . . . . . . . . . . . 1 . 1 . Data Cores Recovered 1 | . . . 1 . . . . . . . . . . . . . . . . . . . . . . . . . . . . . Used . | . . . . . . . . . . . . . . . . . . . . . . . . . . . . . . . . . Hacking Detections 97 | . 5 . 6 . . . 3 7 1 2 5 1 7 2 4 9 2 . 7 . 3 . 10 1 3 2 4 1 2 2 6 2 Full Trace Events 16 | . 3 . 3 . . . . 3 . . 1 . . . . 1 . . . . 1 . . . . 2 . . . . 2 . Feedback Events 1 | . . . . . . . . . . . . . . . . . . . . . . . . . . . . . . . 1 . Corruption 1 | . . . . . . . . . . . . . . . . . . . . . . . . . . . . . . . 1 . Feedback Blocked . | . . . . . . . . . . . . . . . . . . . . . . . . . . . . . . . . . Robot Schematics Acquired 1 | . . . . . . . . . . . . . . . . 1 . . . . . . . . . . . . . . . . Robots Built . | . . . . . . . . . . . . . . . . . . . . . . . . . . . . . . . . . Authchips . | . . . . . . . . . . . . . . . . . . . . . . . . . . . . . . . . . Time . | . . . . . . . . . . . . . . . . . . . . . . . . . . . . . . . . . Total Robot Build Rating . | . . . . . . . . . . . . . . . . . . . . . . . . . . . . . . . . . Part Schematics Acquired 8 | . . . . . . . . . . . 1 . 1 . . 3 . . 2 . . . 1 . . . . . . . . . Parts Built 1 | . . . . . . . . . . . . . . . . . . . . . 1 . . . . . . . . . . . Authchips . | . . . . . . . . . . . . . . . . . . . . . . . . . . . . . . . . . Time 51 | . . . . . . . . . . . . . . . . . . . . . 51 . . . . . . . . . . . Total Part Build Rating 1 | . . . . . . . . . . . . . . . . . . . . . 1 . . . . . . . . . . . Parts Repaired 8 | . . . 3 . . . . 1 . . . . 1 . 1 . . . . . . . 1 . . . . . 1 . . . Time 222 | . . . 92 . . . . 38 . . . . 22 . 22 . . . . . . . 14 . . . . . 34 . . . Parts Recycled . | . . . . . . . . . . . . . . . . . . . . . . . . . . . . . . . . . Recycled Matter 3 | . . . . . . . . . . . . . 3 . . . . . . . . . . . . . . . . . . . Retrieved Matter 3 | . . . . . . . . . . . . . 3 . . . . . . . . . . . . . . . . . . . Retrieved Components . | . . . . . . . . . . . . . . . . . . . . . . . . . . . . . . . . . Parts Scanalyzed 2 | . . . . . . . . . . . . . 1 . . . . . . . . . 1 . . . . . . . . . Part Schematics Acquired 2 | . . . . . . . . . . . . . 1 . . . . . . . . . 1 . . . . . . . . . Parts Damaged 1 | . . . . . . . . . . . . . . . . . . . . . . . 1 . . . . . . . . . Bothacking | -11 -10 -10 -9 -9 -9 -8 -8 -8 -8 -7 -6 -6 -6 -6 -5 -5 -5 -5 -5 -5 -4 -4 -3 -3 -3 -3 -2 -2 -2 -2 -1 -1 ------------ Run | Yrd Mat Min Mat Min Exi Min Mat Sto Gar Fac Fac Gar Fac Gar Fac Ext Cet Arc Hub Gar Fac Gar Res Gar Res Gar Res Gar Res Gar Acc Com Used RIF Installer 11 | . . . . . . . . . 1 . . 1 . 2 . . . . . 1 . 1 . 1 . 1 . 1 . 2 . . Coupler Efficiency 1 | . . . . . . . . . . . . . . 1 . . . . . . . . . . . . . . . . . . Hotswap 1 | . . . . . . . . . . . . . . . . . . . . . . . . . . . . 1 . . . . Code Merge 1 | . . . . . . . . . . . . . . . . . . . . . . . . 1 . . . . . . . . Zone Cloak 1 | . . . . . . . . . . . . . . . . . . . . . . . . . . . . . . 1 . . Robot Detection 1 | . . . . . . . . . . . . 1 . . . . . . . . . . . . . . . . . . . . Watcher Feeds 1 | . . . . . . . . . . . . . . 1 . . . . . . . . . . . . . . . . . . Alert ID Control 1 | . . . . . . . . . . . . . . . . . . . . 1 . . . . . . . . . . . . Structural Interface 1 | . . . . . . . . . . . . . . . . . . . . . . . . . . . . . . 1 . . Autoassimilate 1 | . . . . . . . . . . . . . . . . . . . . . . 1 . . . . . . . . . . Crosswire 1 | . . . . . . . . . . . . . . . . . . . . . . . . . . 1 . . . . . . Robots Hacked 105 | . . . . . . . . . . 2 . . 7 5 1 2 . 3 1 1 1 6 4 2 . 20 1 16 5 20 5 3 Non-combat 13 | . . . . . . . . . . . . . 7 . . . . 1 . . 1 . 1 . . . . . 2 . . 1 Combat 91 | . . . . . . . . . . 2 . . . 5 1 2 . 2 1 1 . 6 3 2 . 20 1 16 3 20 5 1 Autoassimilated 16 | . . . . . . . . . . . . . . . . . . . . . . . . 1 . 6 1 1 1 4 2 . Robot Hacks Applied 105 | . . . . . . . . . . 2 . . 8 6 1 2 . 6 1 1 5 6 7 1 . 14 . 15 5 16 3 6 parse_system 1 | . . . . . . . . . . . . . . 1 . . . . . . . . . . . . . . . . . . purge_threat 13 | . . . . . . . . . . . . . . . . . . 3 . . 3 . 2 . . . . . 1 . . 4 find_terminals 1 | . . . . . . . . . . . . . 1 . . . . . . . . . . . . . . . . . . . block_reporting 3 | . . . . . . . . . . . . . 1 . . . . . . . 1 . 1 . . . . . . . . . link_fov 1 | . . . . . . . . . . . . . 1 . . . . . . . . . . . . . . . . . . . scatter_targeting 1 | . . . . . . . . . . . . . . 1 . . . . . . . . . . . . . . . . . . link_complan 1 | . . . . . . . . . . . . . . . . . . . . . . 1 . . . . . . . . . . overload_power 1 | . . . . . . . . . . . . . . 1 . . . . . . . . . . . . . . . . . . reboot_system 3 | . . . . . . . . . . . . . . . . . . . . . . . 1 . . . . . . 1 . 1 overwrite_iff 14 | . . . . . . . . . . . . . . 3 . 1 . . . . . 1 . . . 3 . 3 . 2 1 . streamctrl_high 1 | . . . . . . . . . . . . . . . . 1 . . . . . . . . . . . . . . . . formatsys_low 10 | . . . . . . . . . . . . . 4 . . . . 1 . . 1 . 1 . . . . . 2 . . 1 formatsys_high 55 | . . . . . . . . . . 2 . . 1 . 1 . . 2 1 1 . 4 2 1 . 11 . 12 2 13 2 . Manual 1 | . . . . . . . . . . . . . . . . . . . . . . . . . . . . . . . . 1 Relay Couplers Released 82 | . . . . . . . . . 3 . . 7 . 6 . . . . . 3 . 8 . 5 . 13 . 15 4 14 4 . Ejected 8 | . . . . . . . . . . . . . . . . . . . . . . . . . . . . . 4 . 4 . Machine Destruction 74 | . . . . . . . . . 3 . . 7 . 6 . . . . . 3 . 8 . 5 . 13 . 15 . 14 . . Attached 38 | . . . . . . . . . . 1 . 2 . 1 2 1 . 2 . 2 1 3 1 5 . 7 . 5 1 3 1 . Crosswired 22 | . . . . . . . . . . . . . . . . . . . . . . . . . . 5 . 5 3 6 3 . Merged Code Value 328 | . . . . . . . . . . . . . . . . . . . . . . . . . . 61 . 93 31 106 37 . Fabnet Peak Effective % . | . . . . . . . . . . . . . . . . . . . . . . . . . . . . . . . . . Robots Rewired 16 | . . . . . . . . . 7 . . . . . . 3 . . . 1 . . . . . 3 . . . 2 . . Allies Hacked 2 | . . . . . . . . . . . . . . . . . . . . . . . . . . . . . . 2 . . Hacks Repelled . | . . . . . . . . . . . . . . . . . . . . . . . . . . . . . . . . . Allies | -11 -10 -10 -9 -9 -9 -8 -8 -8 -8 -7 -6 -6 -6 -6 -5 -5 -5 -5 -5 -5 -4 -4 -3 -3 -3 -3 -2 -2 -2 -2 -1 -1 -------- Run | Yrd Mat Min Mat Min Exi Min Mat Sto Gar Fac Fac Gar Fac Gar Fac Ext Cet Arc Hub Gar Fac Gar Res Gar Res Gar Res Gar Res Gar Acc Com Total Allies 156 | . . . . . . . . 12 7 2 . . 6 3 1 27 5 3 2 2 1 5 4 2 . 23 1 16 5 22 6 1 Largest Group 23 | . . . . . . . . 10 4 2 . . 4 2 1 23 23 23 22 1 1 3 2 2 . 7 1 6 4 16 3 1 Highest-Rated Group 1140 | . . . . . . . . 173 70 32 . . 61 71 49 796 1140 1140 1069 116 26 221 137 94 . 363 42 354 215 901 151 26 Highest-Rated Ally 159 | . . . . . . . . 31 21 16 . . 26 47 49 159 159 159 96 116 26 116 137 47 . 116 42 69 64 116 64 26 Total Orders 3 | . . . . . . . . . . . . . . . . . . . . . . . . 2 . . . . 1 . . . STAY 1 | . . . . . . . . . . . . . . . . . . . . . . . . 1 . . . . . . . . FOLLOW 1 | . . . . . . . . . . . . . . . . . . . . . . . . 1 . . . . . . . . AID 1 | . . . . . . . . . . . . . . . . . . . . . . . . . . . . . 1 . . . Ally Attacks 991 | . . . . . . . . 171 36 9 . . 1 9 . 151 36 24 101 16 . 25 20 20 . 116 7 66 . 162 21 . Total Damage 27672 | . . . . . . . . 2177 730 94 . . 31 231 . 3014 677 294 3438 1126 . 1060 999 510 . 3569 137 2543 . 6516 526 . Kills 154 | . . . . . . . . 21 14 . . . . . . 17 5 2 15 8 . 8 7 3 . 21 1 4 . 24 4 . Allies Corrupted 7 | . . . . . . . . . 1 . . . . . . . . . 1 . . . . . . 2 . . . 2 1 . Allies Melted 6 | . . . . . . . . . . . . . . 1 . . . . 2 . . . . . . 1 . 1 . 1 . . Intel | -11 -10 -10 -9 -9 -9 -8 -8 -8 -8 -7 -6 -6 -6 -6 -5 -5 -5 -5 -5 -5 -4 -4 -3 -3 -3 -3 -2 -2 -2 -2 -1 -1 ------- Run | Yrd Mat Min Mat Min Exi Min Mat Sto Gar Fac Fac Gar Fac Gar Fac Ext Cet Arc Hub Gar Fac Gar Res Gar Res Gar Res Gar Res Gar Acc Com Robot Analysis Total 10 | . 1 . 1 . . . 4 . . . . . . . 1 1 . . . . . . . . . . . . . . 2 . Derelict Logs Recovered 3 | . . 2 . 1 . . . . . . . . . . . . . . . . . . . . . . . . . . . . Drone Launches 2 | . . . . . . . . . . . . . 2 . . . . . . . . . . . . . . . . . . . Drone Recoveries . | . . . . . . . . . . . . . . . . . . . . . . . . . . . . . . . . . Exploration | -11 -10 -10 -9 -9 -9 -8 -8 -8 -8 -7 -6 -6 -6 -6 -5 -5 -5 -5 -5 -5 -4 -4 -3 -3 -3 -3 -2 -2 -2 -2 -1 -1 ------------- Run | Yrd Mat Min Mat Min Exi Min Mat Sto Gar Fac Fac Gar Fac Gar Fac Ext Cet Arc Hub Gar Fac Gar Res Gar Res Gar Res Gar Res Gar Acc Com Turns Passed 22167 | 54 440 208 642 1298 316 1116 931 1035 1478 1681 924 499 2054 742 1163 728 294 379 448 349 417 236 570 337 282 372 134 417 222 487 623 1291 Spaces Moved 19404 | 39 277 134 301 663 230 432 400 407 610 1630 728 265 1658 528 828 442 157 213 392 463 838 249 1121 249 705 697 403 678 429 882 1547 809 Core 379 | 1 . . . . . . . . . 198 34 . . . . . . . . . . . . . . . . . . . . 146 Treads 481 | . . . . . . . . . . . 105 . . . . . . . . . . . . . . . . . . . . 376 Legs 4919 | 38 277 134 301 663 230 432 400 407 610 392 . . 1 . 2 389 157 213 273 . . . . . . . . . . . . . Wheels 3595 | . . . . . . . . . . 10 256 265 1657 528 826 53 . . . . . . . . . . . . . . . . Hover 1096 | . . . . . . . . . . 763 333 . . . . . . . . . . . . . . . . . . . . . Flight 8934 | . . . . . . . . . . 267 . . . . . . . . 119 463 838 249 1121 249 705 697 403 678 429 882 1547 287 Fastest Speed 19 | 50 120 120 120 190 120 190 190 120 190 35 50 100 90 90 100 115 120 120 29 29 31 28 22 22 22 22 19 24 30 30 25 25 Average Speed 80 | 118 120 120 140 190 135 191 191 167 190 76 100 113 97 94 111 119 120 120 93 32 32 29 23 22 22 22 23 29 30 32 31 90 Slowest Speed 300 | 120 120 120 190 190 190 260 192 192 260 190 160 115 120 115 190 120 120 120 120 34 34 114 105 22 22 25 24 31 105 36 104 300 Overloaded Moves . | . . . . . . . . . . . . . . . . . . . . . . . . . . . . . . . . . Propulsion Burnouts . | . . . . . . . . . . . . . . . . . . . . . . . . . . . . . . . . . Robots Hopped 62 | . . . . . . . . . . 1 . . . . . . . . 1 11 2 6 10 . 5 9 . 4 . 1 12 . Cave-ins Triggered 4 | . . . . . . 1 . . . . . . . . . . . . . . . 1 . . . . . . . . . 2 Exploration Rate (%) 48 | 4 46 43 26 99 62 87 44 75 63 27 23 39 29 61 17 78 73 90 55 52 20 48 41 34 24 46 12 78 13 89 56 31 Regions Visited 32 Branch Regions 10 Pre-discovered Areas 4 | . 1 1 . . . . 1 1 . . . . . . . . . . . . . . . . . . . . . . . . Known Exits Taken 11 | . . . . . . . 1 1 . . 1 . 1 . . 1 . . 1 . 1 . 1 . 1 . 1 . 1 . . . Unknown Exits Taken 12 | 1 1 1 1 1 1 1 . . . 1 . . . . 1 . 1 1 . . . . . . . . . . . . 1 . Scrap Searched 4 | . . . . 3 . 1 . . . . . . . . . . . . . . . . . . . . . . . . . . Spaces Dug 172 | . . . . . . 2 24 . 1 7 6 . 18 8 6 4 . . 13 8 3 11 8 9 4 6 2 6 2 . 11 13 Terrain Destroyed 622 | . 6 . 18 7 . 17 35 65 1 11 32 1 28 10 8 26 66 8 187 9 3 12 12 9 4 6 2 6 2 . 13 18 Melee 146 | . . . . . . 2 . . 1 7 6 . 18 8 6 4 . . 13 8 3 11 8 9 4 6 2 6 2 . 11 11 Projectile 56 | . . . . . . . . . . 4 2 1 10 2 2 11 . 8 1 1 . 1 4 . . . . . . . 2 7 AOE 420 | . 6 . 18 7 . 15 35 65 . . 24 . . . . 11 66 . 173 . . . . . . . . . . . . . Terrain Rammed . | . . . . . . . . . . . . . . . . . . . . . . . . . . . . . . . . . Walls Destroyed . | . . . . . . . . . . . . . . . . . . . . . . . . . . . . . . . . . Machines Disabled . | . . . . . . . . . . . . . . . . . . . . . . . . . . . . . . . . . Actions | -11 -10 -10 -9 -9 -9 -8 -8 -8 -8 -7 -6 -6 -6 -6 -5 -5 -5 -5 -5 -5 -4 -4 -3 -3 -3 -3 -2 -2 -2 -2 -1 -1 --------- Run | Yrd Mat Min Mat Min Exi Min Mat Sto Gar Fac Fac Gar Fac Gar Fac Ext Cet Arc Hub Gar Fac Gar Res Gar Res Gar Res Gar Res Gar Acc Com Total 24007 | 44 331 152 466 679 236 670 494 610 812 1937 844 418 2008 667 1007 567 256 289 441 598 965 343 1365 505 821 858 426 840 507 1026 1646 1179 Wait 2241 | . 10 2 94 2 . 197 41 67 20 167 32 100 248 28 112 40 85 21 8 50 84 24 176 195 88 24 . 47 48 54 20 157 Move 19270 | 38 276 133 300 662 229 431 399 407 609 1627 727 264 1658 527 827 441 156 212 389 444 834 239 1105 248 695 681 403 670 428 879 1523 809 Hop 46 | . . . . . . . . . . 1 . . . . . . . . 1 7 2 3 6 . 5 6 . 3 . 1 11 . Pick Up 140 | 1 9 . 14 1 1 2 11 7 2 8 . 2 2 9 4 2 1 . 5 2 9 3 5 . 4 1 3 4 3 4 14 7 Fast Attach 199 | 5 2 . 8 . . 1 . 9 5 33 18 3 12 . 13 5 1 2 3 4 8 1 9 6 . 6 4 7 3 5 12 14 Attach 99 | . . 1 . . . 8 2 5 6 8 1 . . 4 2 3 1 2 3 3 2 6 4 . . 7 3 5 . 2 11 10 Detach 28 | . . . 1 . 1 . . . 3 3 2 . . . 2 . 1 . 1 1 . . 2 1 . 2 . 1 1 2 2 2 Swap 177 | . 2 2 7 2 2 4 5 20 14 2 6 1 9 4 5 9 2 5 4 4 5 2 14 4 4 14 1 . 4 4 4 12 Drop 164 | . 4 . 13 1 3 . . 11 4 15 10 4 6 3 5 1 2 1 9 4 6 1 7 3 6 . 2 1 3 3 17 19 Fire 852 | . 27 14 29 11 . 22 35 73 31 34 32 24 45 71 22 45 7 44 2 31 7 15 20 1 . 30 . 18 8 28 13 113 Melee 390 | . . . . . . 2 . 7 34 35 13 12 23 17 15 12 . 2 16 11 3 28 15 12 4 17 9 23 6 23 17 34 Ram . | . . . . . . . . . . . . . . . . . . . . . . . . . . . . . . . . . Kick 13 | . 1 . . . . 3 1 4 2 2 . . . . . . . . . . . . . . . . . . . . . . Crush 1 | . . . . . . . . . . . 1 . . . . . . . . . . . . . . . . . . . . . Escape Stasis 239 | . . . . . . . . . 5 . . 8 . 4 . . . . . 36 4 17 . 33 15 57 . 48 . 10 . 2 Rewire 148 | . . . . . . . . . 77 2 2 . 5 . . 9 . . . 1 1 4 2 2 . 13 1 13 3 11 2 . Trap . | . . . . . . . . . . . . . . . . . . . . . . . . . . . . . . . . . Miscellaneous . | . . . . . . . . . . . . . . . . . . . . . . . . . . . . . . . . . Route ------- -11/Scrapyard -10/Materials -10/Mines -9/Materials -9/Mines (discovered 3 exits: *Mat x2 / *Exi) -9/Exiles -8/Mines -8/Materials (discovered 3 exits: Fac / *Sto x2) -8/Storage -8/Garrison -7/Factory (discovered 2 exits: *Fac / [*Low]) -6/Factory -6/Garrison (discovered 3 exits: *Fac x3) -6/Factory (discovered 2 exits: *Fac / Gar) -6/Garrison (discovered 3 exits: *Fac x3) -5/Factory -5/Extension (discovered 2 exits: *Fac / *Cet) -5/Cetus -5/Archives (discovered 3 exits: *Fac / *Hub x2) -5/Hub_04(d) (discovered 5 exits: *Fac x4 / Gar) -5/Garrison -4/Factory (discovered 5 exits: *Res x4 / Gar) -4/Garrison -3/Research (discovered 4 exits: *Res x2 / [*Tes] / Gar) -3/Garrison -3/Research -3/Garrison -2/Research -2/Garrison (discovered 3 exits: *Res x3) -2/Research -2/Garrison (discovered 3 exits: *Acc x3) -1/Access (discovered 2 exits: Sur / *Com) -1/Command History --------- Turn | Location | Event 8 | -11/Scrapyard | Discovered new exit (range 16) 55 | -11/Scrapyard | Entered Materials 311 | -10/Materials | Build established: Mutant 416 | -10/Materials | Discovered new exit (range 16) 495 | -10/Materials | Entered Mines 511 | -10/Mines | Learned Materials security intel 669 | -10/Mines | Discovered new exit (range 6) 703 | -10/Mines | Entered Materials 703 | -9/Materials | Evolved 2 slots: Propulsion x1, Utility x1 722 | -9/Materials | Repaired Aluminum Leg 992 | -9/Materials | Repaired EM Pulse Gun 1046 | -9/Materials | Repaired Corrupted Katana 1197 | -9/Materials | Build established: Scavenger-Mutant 1318 | -9/Materials | Discovered new exit (range 14) 1345 | -9/Materials | Entered Mines 1490 | -9/Mines | Joined a pair of Derelicts in attacking an 0b10 outpost 1826 | -9/Mines | Discovered new exit (range 8) 2050 | -9/Mines | Found a hidden stash of uninstalled traps 2392 | -9/Mines | Discovered new exit (range 5) 2635 | -9/Mines | Deemed a non-threat by the Exiles lab entrance 2635 | -9/Mines | Discovered new exit (range 5) 2643 | -9/Mines | Entered Exiles 2687 | -9/Exiles | Met 8R-AWN 2711 | -9/Exiles | Met EX-HEX 2748 | -9/Exiles | Met EX-BIN 2762 | -9/Exiles | Aligned with FarCom system 2763 | -9/Exiles | Given EX-Vault access code 2794 | -9/Exiles | Opened EX-Vault 2799 | -9/Exiles | Found Cloak of Protection 2823 | -9/Exiles | Warned to stay clear of 0b10 Research branches 2845 | -9/Exiles | Exiles lab attacked by MAIN.C 2938 | -9/Exiles | Discovered new exit (range 14) 2959 | -9/Exiles | Left Exiles lab with Cloak of Protection 2959 | -9/Exiles | Entered Mines 3258 | -8/Mines | Build established: Mutant 3940 | -8/Mines | Crushed by falling debris 3940 | -8/Mines | System corruption reached 10% 3996 | -8/Mines | Lost 5 parts (1n2u2w) 4047 | -8/Mines | Discovered new exit (range 16) 4075 | -8/Mines | Entered Materials 4075 | -8/Materials | Evolved 2 slots: Propulsion x1, Utility x1 4076 | -8/Materials | Identified exit to Factory 4095 | -8/Materials | Garrison activated, responded to threat 4124 | -8/Materials | Discovered new exit (range 15) 4226 | -8/Materials | Build established: Scavenger-Mutant 4664 | -8/Materials | Identified exit to Storage 5006 | -8/Materials | Entered Storage 5363 | -8/Storage | Met a pair of Derelict thieves 5498 | -8/Storage | Repaired Hrd. Medium Armor Plating 5680 | -8/Storage | Build established: Mutant 5761 | -8/Storage | Assisted by bots powering up and referring to "LRC-V3" 5878 | -8/Storage | Core integrity fell below 50% 5907 | -8/Storage | Garrison activated, responded to threat 5967 | -8/Storage | Lost 6 allies 5983 | -8/Storage | Lost 5 parts (3n1u1w) 6024 | -8/Storage | Core integrity fell below 20% 6041 | -8/Storage | Identified exit to Garrison 6041 | -8/Storage | Entered Garrison 6177 | -8/Garrison | Build established: Scavenger-Mutant 6321 | -8/Garrison | Lost 3 allies 6459 | -8/Garrison | Triggered checkpoint 6614 | -8/Garrison | Discovered exit to Factory (range 8) 6775 | -8/Garrison | Triggered checkpoint 6795 | -8/Garrison | Installed Relay Interface Framework 6848 | -8/Garrison | Garrison Relay disabled 7091 | -8/Garrison | Triggered checkpoint 7513 | -8/Garrison | Triggered checkpoint 7519 | -8/Garrison | Entered Factory 7519 | -7/Factory | Evolved 2 slots: Propulsion x2 7598 | -7/Factory | Discovered new exit (range 4) 7919 | -7/Factory | First assault squad dispatched 8247 | -7/Factory | Released all parts (8) 8276 | -7/Factory | Lost 6 parts (1p4n1u) 8279 | -7/Factory | Discovered new exit (range 6) 8571 | -7/Factory | Build established: Mutant 9150 | -7/Factory | Cargo convoy interrupted 9167 | -7/Factory | Core integrity fell below 50% 9200 | -7/Factory | Entered another Factory area 9200 | -6/Factory | Evolved 2 slots: Utility x2 9203 | -6/Factory | Lost 9 parts (1p6n1u1w) 9498 | -6/Factory | Build established: Scout 10111 | -6/Factory | Identified exit to Garrison 10124 | -6/Factory | Entered Garrison 10196 | -6/Garrison | Build established: Hacker-Mutant 10198 | -6/Garrison | Garrison Relay disabled 10298 | -6/Garrison | Triggered checkpoint 10319 | -6/Garrison | Discovered new exit (range 21) 10319 | -6/Garrison | Discovered new exit (range 35) 10319 | -6/Garrison | Discovered new exit (range 54) 10329 | -6/Garrison | Spotted B-75 Beast 10329 | -6/Garrison | Spotted B-75 Beast 10438 | -6/Garrison | Triggered checkpoint 10472 | -6/Garrison | Triggered checkpoint 10537 | -6/Garrison | Heavy support dispatched to Factory 10571 | -6/Garrison | Lost 6 parts (1p5n) 10571 | -6/Garrison | Expanded RIF knowledge: Robot Detection 10579 | -6/Garrison | Garrison Relay disabled 10623 | -6/Garrison | Entered Factory 11581 | -6/Factory | Discovered new exit (range 15) 11623 | -6/Factory | Repaired Arm. Huge Wheel 12677 | -6/Factory | Identified exit to Garrison 12677 | -6/Factory | Entered Garrison 12713 | -6/Garrison | Triggered checkpoint 12781 | -6/Garrison | Garrison Relay disabled 12837 | -6/Garrison | Expanded RIF knowledge: Watcher Feeds 13067 | -6/Garrison | Lost 3 allies 13103 | -6/Garrison | Triggered checkpoint 13130 | -6/Garrison | Discovered new exit (range 8) 13259 | -6/Garrison | Triggered checkpoint 13315 | -6/Garrison | Learned Factory security intel 13315 | -6/Garrison | Discovered new exit (range 50) 13315 | -6/Garrison | Discovered new exit (range 7) 13315 | -6/Garrison | Discovered new exit (range 69) 13372 | -6/Garrison | Expanded RIF knowledge: Coupler Efficiency 13373 | -6/Garrison | Lost 3 parts (2n1u) 13393 | -6/Garrison | Garrison Relay disabled 13419 | -6/Garrison | Entered Factory 13419 | -5/Factory | Evolved 2 slots: Utility x2 13470 | -5/Factory | Repaired Lyr. Light Armor Plating 13703 | -5/Factory | Build established: Bothacker-Mutant 14370 | -5/Factory | Cargo convoy interrupted 14540 | -5/Factory | Discovered new exit (range 11) 14582 | -5/Factory | Entered Extension 14582 | -5/Extension | Accompanied by 1 ally 14627 | -5/Extension | Rescued a captive Derelict 14650 | -5/Extension | Rescued a captive Derelict 14651 | -5/Extension | Rescued a captive Derelict 14733 | -5/Extension | Rescued A7 14775 | -5/Extension | Rescued a captive Derelict 14825 | -5/Extension | Rescued a captive Derelict 14852 | -5/Extension | Spotted B-75 Beast 14853 | -5/Extension | Rescued a captive Derelict 14860 | -5/Extension | Rescued a captive Derelict 14873 | -5/Extension | Spotted B-75 Beast 14889 | -5/Extension | Allies destroyed B-75 Beast 14899 | -5/Extension | Destroyed B-75 Beast 15002 | -5/Extension | Rescued a captive Derelict 15003 | -5/Extension | Rescued a captive Derelict 15025 | -5/Extension | Identified exit to Cetus 15030 | -5/Extension | Rescued a captive Derelict 15033 | -5/Extension | Rescued a captive Derelict 15060 | -5/Extension | System corruption reached 10% 15072 | -5/Extension | Rescued a captive Derelict 15073 | -5/Extension | Rescued a captive Derelict 15091 | -5/Extension | Rescued a captive Derelict 15092 | -5/Extension | Rescued a captive Derelict 15118 | -5/Extension | Rescued a captive Derelict 15131 | -5/Extension | Rescued a captive Derelict 15133 | -5/Extension | Rescued a captive Derelict 15140 | -5/Extension | Rescued a captive Derelict 15141 | -5/Extension | Central database locked down 15146 | -5/Extension | Rescued a captive Derelict 15147 | -5/Extension | Rescued a captive Derelict 15185 | -5/Extension | Energy Cycler disabled 15185 | -5/Extension | Rescued a captive Derelict 15189 | -5/Extension | Rescued a captive Derelict 15216 | -5/Extension | Lost 4 allies 15232 | -5/Extension | Discovered new exit (range 10) 15244 | -5/Extension | Disrupted transfer network 15310 | -5/Extension | Entered Cetus 15310 | -5/Cetus | Accompanied by 20 allies (A7) 15315 | -5/Cetus | Acquired a Cetus Manufacturing Module code from A7 15328 | -5/Cetus | Spotted Cetus Guard 15328 | -5/Cetus | Spotted Cetus Guard 15330 | -5/Cetus | Spotted Cetus Guard 15331 | -5/Cetus | Spotted Cetus Guard 15333 | -5/Cetus | Allies destroyed Cetus Guard 15342 | -5/Cetus | Allies destroyed Cetus Guard 15344 | -5/Cetus | Allies destroyed Cetus Guard 15352 | -5/Cetus | Allies destroyed Cetus Guard 15395 | -5/Cetus | Started Cetus Manufacturing Module 15404 | -5/Cetus | Escorted A7 to Cetus Mainframe 15420 | -5/Cetus | Manufactured an Enhanced Grunt 15445 | -5/Cetus | Manufactured an Enhanced Grunt 15470 | -5/Cetus | Manufactured an Enhanced Grunt 15495 | -5/Cetus | Manufactured an Enhanced Grunt 15520 | -5/Cetus | Manufactured an Enhanced Grunt 15553 | -5/Cetus | Discovered new exit (range 15) 15604 | -5/Cetus | Entered Archives 15604 | -5/Archives | Accompanied by 23 allies (A7) 15609 | -5/Archives | Received a hacking code to weaken MAIN.C 15637 | -5/Archives | Discovered new exit (range 16) 15656 | -5/Archives | Discovered new exit (range 16) 15727 | -5/Archives | Discovered new exit (range 16) 15983 | -5/Archives | Entered Hub_04(d) 15983 | -5/Hub_04(d) | Accompanied by 21 allies 15987 | -5/Hub_04(d) | Discovered new exit (range 15) 16050 | -5/Hub_04(d) | Identified exit to Factory 16099 | -5/Hub_04(d) | Identified exit to Garrison 16131 | -5/Hub_04(d) | Garrison activated, responded to threat 16194 | -5/Hub_04(d) | Lost 3 allies 16283 | -5/Hub_04(d) | First assault squad dispatched 16362 | -5/Hub_04(d) | Network Hub disabled 16387 | -5/Hub_04(d) | Spotted Lightning 16393 | -5/Hub_04(d) | Spotted Lightning 16394 | -5/Hub_04(d) | Lost 11 allies 16394 | -5/Hub_04(d) | Spotted Lightning 16394 | -5/Hub_04(d) | Spotted Lightning 16398 | -5/Hub_04(d) | Spotted Lightning 16426 | -5/Hub_04(d) | Lost 3 parts (2n1u) 16431 | -5/Hub_04(d) | Entered Garrison 16435 | -5/Garrison | Spotted B-86 Titan 16435 | -5/Garrison | Spotted B-75 Beast 16437 | -5/Garrison | Rewired B-86 Titan 16487 | -5/Garrison | Triggered checkpoint 16584 | -5/Garrison | Garrison Relay disabled 16589 | -5/Garrison | Triggered checkpoint 16606 | -5/Garrison | Assimilated Titan 6b with formatsys_high 16612 | -5/Garrison | Allies destroyed B-75 Beast 16616 | -5/Garrison | Found Quantum Capacitor 16751 | -5/Garrison | Triggered checkpoint 16757 | -5/Garrison | Triggered checkpoint 16766 | -5/Garrison | Discovered exit to Factory (range 15) 16778 | -5/Garrison | Expanded RIF knowledge: Alert ID Control 16780 | -5/Garrison | Entered Factory 16780 | -4/Factory | Evolved 2 slots: Utility x2 16813 | -4/Factory | Identified exit to Research 16850 | -4/Factory | Build established: Hacker-Mutant 17029 | -4/Factory | Found Prototype Processor 17029 | -4/Factory | Identified Exp. Terrain Scan Processor 17142 | -4/Factory | Fabricated Lrg. Storage Unit? 17185 | -4/Factory | Spotted B-86 Titan 17197 | -4/Factory | Identified exit to Garrison 17197 | -4/Factory | Entered Garrison 17249 | -4/Garrison | Triggered checkpoint 17250 | -4/Garrison | Garrison Relay disabled 17272 | -4/Garrison | Spotted B-86 Titan 17284 | -4/Garrison | Triggered checkpoint 17285 | -4/Garrison | Triggered checkpoint 17335 | -4/Garrison | Crushed by falling debris 17351 | -4/Garrison | Expanded RIF knowledge: Autoassimilate 17354 | -4/Garrison | Garrison Relay disabled 17364 | -4/Garrison | Assimilated Titan 7a with formatsys_high 17366 | -4/Garrison | Lost 5 parts (2n3u) 17397 | -4/Garrison | Discovered exit to Research (range 14) 17417 | -4/Garrison | Triggered checkpoint 17433 | -4/Garrison | Entered Research 17433 | -3/Research | Evolved 2 slots: Utility x2 17634 | -3/Research | Build established: Bothacker-Sprinter 17720 | -3/Research | P-80 Master assimilated allied Director 8a 17769 | -3/Research | Lost 5 parts (1p2n2u) 17790 | -3/Research | Discovered new exit (range 24) 17790 | -3/Research | Discovered new exit (range 29) 17914 | -3/Research | Repaired Powered Hammer 17922 | -3/Research | Discovered new exit (range 19) 18000 | -3/Research | Spotted B-86 Titan 18003 | -3/Research | Identified exit to Garrison 18003 | -3/Research | Entered Garrison 18036 | -3/Garrison | Expanded RIF knowledge: Code Merge 18055 | -3/Garrison | Triggered checkpoint 18059 | -3/Garrison | Garrison Relay disabled 18303 | -3/Garrison | Spotted B-86 Titan 18312 | -3/Garrison | Discovered new exit (range 10) 18313 | -3/Garrison | Triggered checkpoint 18340 | -3/Garrison | Entered Research 18369 | -3/Research | Build established: Botlord-Sprinter 18566 | -3/Research | Spotted B-86 Titan 18622 | -3/Research | Identified exit to Garrison 18622 | -3/Research | Entered Garrison 18632 | -3/Garrison | Spotted B-86 Titan 18653 | -3/Garrison | Garrison Relay disabled 18681 | -3/Garrison | Assimilated Titan 8a with formatsys_high 18744 | -3/Garrison | Lost 4 allies 18762 | -3/Garrison | Triggered checkpoint 18766 | -3/Garrison | Triggered checkpoint 18802 | -3/Garrison | Garrison Relay disabled 18810 | -3/Garrison | Learned Research security intel 18819 | -3/Garrison | Lost 4 allies 18845 | -3/Garrison | Discovered new exit (range 14) 18849 | -3/Garrison | Expanded RIF knowledge: Crosswire 18884 | -3/Garrison | Lost 3 parts (1p2n) 18921 | -3/Garrison | Spotted B-86 Titan 18921 | -3/Garrison | Spotted B-86 Titan 18929 | -3/Garrison | Lost 3 allies 18931 | -3/Garrison | Garrison Relay disabled 18988 | -3/Garrison | Lost 5 parts (1n4u) 18994 | -3/Garrison | Entered Research 18994 | -2/Research | Spotted B-90 Cyclops 18994 | -2/Research | Evolved 2 slots: Propulsion x2 19128 | -2/Research | Identified exit to Garrison 19128 | -2/Research | Entered Garrison 19140 | -2/Garrison | Learned Research security intel 19152 | -2/Garrison | Triggered checkpoint 19154 | -2/Garrison | Garrison Relay disabled 19206 | -2/Garrison | Spotted B-86 Titan 19225 | -2/Garrison | Spotted B-90 Cyclops 19246 | -2/Garrison | Garrison Relay disabled 19253 | -2/Garrison | Triggered checkpoint 19271 | -2/Garrison | Discovered new exit (range 3) 19300 | -2/Garrison | Triggered checkpoint 19339 | -2/Garrison | Triggered checkpoint 19381 | -2/Garrison | Garrison Relay disabled 19394 | -2/Garrison | Discovered new exit (range 11) 19411 | -2/Garrison | Triggered checkpoint 19454 | -2/Garrison | Triggered checkpoint 19473 | -2/Garrison | Discovered new exit (range 10) 19485 | -2/Garrison | Discovered new exit (range 17) 19485 | -2/Garrison | Discovered new exit (range 82) 19485 | -2/Garrison | Discovered new exit (range 87) 19490 | -2/Garrison | Expanded RIF knowledge: Hotswap 19496 | -2/Garrison | Lost 6 allies 19527 | -2/Garrison | Garrison Relay disabled 19532 | -2/Garrison | Triggered checkpoint 19545 | -2/Garrison | Entered Research 19608 | -2/Research | Repaired Impulse Thruster Array 19757 | -2/Research | Identified exit to Garrison 19767 | -2/Research | Entered Garrison 19767 | -2/Garrison | Accompanied by 4 allies 19786 | -2/Garrison | Expanded RIF knowledge: Structural Interface 19797 | -2/Garrison | Triggered checkpoint 19816 | -2/Garrison | Rescued a captive Derelict 19819 | -2/Garrison | Garrison Relay disabled 19846 | -2/Garrison | Triggered checkpoint 19863 | -2/Garrison | Triggered checkpoint 19867 | -2/Garrison | Triggered checkpoint 19875 | -2/Garrison | Triggered checkpoint 19889 | -2/Garrison | Discovered new exit (range 12) 19952 | -2/Garrison | Spotted Executioner 19997 | -2/Garrison | Expanded RIF knowledge: Zone Cloak 20021 | -2/Garrison | Allies destroyed Executioner 20027 | -2/Garrison | Rewired Striker 20034 | -2/Garrison | Discovered new exit (range 10) 20044 | -2/Garrison | Garrison Relay disabled 20053 | -2/Garrison | Triggered checkpoint 20070 | -2/Garrison | Spotted B-75 Beast 20071 | -2/Garrison | Rewired B-86 Titan 20072 | -2/Garrison | Spotted B-90 Cyclops 20131 | -2/Garrison | Lost 4 allies 20132 | -2/Garrison | Discovered new exit (range 14) 20153 | -2/Garrison | Garrison Relay disabled 20193 | -2/Garrison | Triggered checkpoint 20197 | -2/Garrison | Garrison Relay disabled 20254 | -2/Garrison | Entered Access 20254 | -1/Access | Accompanied by 3 allies 20254 | -1/Access | Evolved 2 slots: Utility x2 20273 | -1/Access | Lost 8 allies 20357 | -1/Access | Lost 3 allies 20504 | -1/Access | Search patrols dispatched 20513 | -1/Access | Identified exit to Surface 20676 | -1/Access | Garrison activated, responded to threat 20704 | -1/Access | Found Prototype Device 20704 | -1/Access | Identified Exp. ECM Suite 20726 | -1/Access | Lost 4 parts (1p1n1u1w) 20754 | -1/Access | Search patrols dispatched 20871 | -1/Access | Discovered new exit (range 8) 20877 | -1/Access | Entered Command 20877 | -1/Command | Accompanied by 1 ally 21262 | -1/Command | Build established: Botlord-Mutant 21669 | -1/Command | Build established: Hacker-Mutant 21685 | -1/Command | Spotted Combat Programmer 21698 | -1/Command | Crushed by falling debris 21701 | -1/Command | Crushed by falling debris 21701 | -1/Command | System corruption reached 10% 21704 | -1/Command | Spotted M Guard 21704 | -1/Command | Spotted Combat Programmer 21716 | -1/Command | Spotted M Guard 21732 | -1/Command | Lost 4 parts (4u) 21742 | -1/Command | Destroyed Combat Programmer 21745 | -1/Command | Destroyed M Guard 21768 | -1/Command | Destroyed Combat Programmer 21827 | -1/Command | Met MAIN.C 21829 | -1/Command | Hacked MAIN.C using A7's code 21874 | -1/Command | 0b10 Conduit disabled 21897 | -1/Command | Core integrity fell below 50% 21946 | -1/Command | Lost 3 parts (1p2n) 21963 | -1/Command | System corruption reached 30% 21993 | -1/Command | Lost 3 parts (2n1w) 22160 | -1/Command | Spotted Alpha 7 22160 | -1/Command | Spotted Alpha 7 22160 | -1/Command | Spotted Striker 22160 | -1/Command | Spotted Striker 22160 | -1/Command | Spotted Executioner 22160 | -1/Command | Spotted Executioner 22160 | -1/Command | Spotted Executioner 22160 | -1/Command | Spotted Executioner 22163 | -1/Command | Spotted B-99 Colossus 22163 | -1/Command | Spotted B-99 Colossus 22164 | -1/Command | Core integrity fell below 20% 22168 | -1/Command | Destroyed by Alpha 7 with Multirail Last Messages --------------- 22163_ Wall collapses. 22163_ Slug penetrates Striker. 22163_ Slug penetrates Wall. 22163_ Penetrated by Slug. 22163_ Slug penetrates Wall. 22163_ Field strength at 58. 22163_ Penetrated by Slug. 22163_ Adv. System Shield destroyed. 22163_ Penetrated by Slug. 22163_ Slug penetrates Wall. 22164_ ECM Suite destroyed. 22164_ Knocked back. 22166_ Penetrated by Slug. 22166_ Slug penetrates Wall. 22166_ Knocked back. 22166_ Slug penetrates Executioner. 22166_ Slug penetrates Alpha 7. 22166_ Penetrated by Slug. 22166_ Knocked back. 22166_ Acquired 3 matter. Map ----- +----------------------------------------------------+ | #### #### #???# #????????????????????????? | | + + #???" #????????????????????????? | | + + #???" #????????????????????????? | | " + #??T #????????????????????????? | | + + #??"" #????????????????????????? | | #### #### #???" #????????????????????????? | | ??# #?# ##### #????????????????????????? | | ??# #?# ^ #????????????????????????? | | ??# #?# #????????????????????????? | | ??#####?# #????????????????????????? | | ????????# #????????????????????????? | | ????????######## ####?????????????????????? | | ???????????????# #?????????????????????? | | ???????????????# #?????????????????????? | | ???????????????# #?????????????????????? | | ???????????????# #?????????????????????? | | ???????######### #?????????????????????? | | ???????# # #?????????????????????? | | ???????# # #?????????????????????? | | ???????# # #?????????????????????? | | ???????# # #?????????????????????? | | ???????# # #?????????????????????? | | ???????# # k #?????????????????????? | | ???????# # #?????????????? ????? | | ???????# # % #????######?# ????? | | ???????# # @ #?### " # # "BB ????? | | ???????###+## ###7 K^E ^ BB "?????? | | ?????????# k / ^E "?????? | | ?????????#### /^ "?????? | | ????????????# % 7^% "?????? | | ????????????# %/ "?????? | | ????????????# ######## K E E BB "?????? | | ????????????# R""#????### # # # #BB ??? | | ????????????### ""#???????##?#?#?????? ????? | | ??????????????# ""#????????????????????????? | | ??????????????# T#????????????????????????? | | ??????????????# g ""#????????????????????????? | | ??????????????# ""##########???????????????? | | ??????????????# g ""# #???????????????? | | ??????????????# g ### #???????????????? | | ??????????????# | #?# #???????????????? | | ???????????########g##### "" #???????????????? | | ???????????# # """" ############????? | | ???????????# / """" + + # | | ???????????# # "" #### # | | ###?#####??# # #??? """" # | | #?# #### # #???? """" ???? | | ### #"##"#"###/#########+########? """"????? | | + +?? """?????? | | + #?? ????? | +----------------------------------------------------+ Best States ------------- Heat Dissipation 109 Energy Generation 25 Energy Capacity 350 Matter Stores 379 Matter Capacity 800 Sight Range 22 Terrain Scan Range 20 Terrain Scan Density 1010 ECM Strength 3 Cloak Strength 5 Additional Mass Support 6 Corruption Block 15 Armor Coverage 825 Resistance: KI 30 Resistance: TH 15 Utility Shielding 66 Phase Shifting 15 Evasion (%) 79 Targeting Accuracy 14 Melee Accuracy 8 Recoil Reduction 8 Offensive Hacking 22 Defensive Hacking 28 Relay Coupler Types 9 Relay Coupler Value 238 Item Schematics ----------------- Imp. Reaction Control System | -6/Factory | Hacked Remote Datajack | -6/Factory | Scanalyzed Lrg. Storage Unit | -5/Extension | Hacked Huge Storage Unit | -5/Extension | Hacked Hcp. Storage Unit | -5/Extension | Hacked Variable Charge Gun | -5/Hub_04(d) | Hacked Adv. Datajack | -5/Hub_04(d) | Hacked Cld. Field Propulsion Drive | -3/Research | Scanalyzed Robot Schematics ------------------ K-01 Serf | -5/Extension | Hacked Fabricated ------------ Lrg. Storage Unit | x1 | -4/Factory Alien Tech Used ----------------- None Achievements -------------- Main Advantage Poison In The Code Challenges ------------ None Game ------ Seed TacticalLongswordProjector Manual? 0 Play Time 06:34:34 Cumulative 140.4 hours Start 2025.03.01 @ 17:05:59 End 2025.03.03 @ 12:21:32 Sessions 7 Manual Loads 0 Difficulty Rogue Special Mode None Game No. 70 Rogue 70 Adventurer 0 Explorer 0 Win Type - Total 7 Types 4/0/2/0/1/0/0/0/0 Lore% 64 Gallery% 63 Achievement% 57 Wizard Run 0 Options --------- Layout 1 ASCII 0 Keyboard 0 Movement Numpad Keybinds 0 Fullscreen 1 Font 24/Smallcaps Map View 50x35 Zoom Use 0% Tactical HUD 1 Map Filters NONE Filters NONE Steam 1 RUN: cf240c3a-ded8-4271-b55a-44019432db54